Cogmind - Beta 12 @@@ ROGUE MODE // 2024.02.27 @ 16:31:18 Player: Epsilon Result: Heading to fleet! Performance ------------- Evolutions (9) 4500 Regions Visited (38) 7600 Robots Destroyed (337) 1685 Value Destroyed (9090) 9090 Prototype IDs (107) 2140 Alien Tech Used (11) 2200 Bonus (18412) 18412 TOTAL SCORE: 45627 Bonus ------- High Alert Combat Kills 517 Follower Combat Kills 1974 Network Hubs Disabled 400 Met Imprinter 300 Met Zhirov 300 Met Warlord at Base 500 MAIN.C Attacked Warlord 500 Warlord Defense Kills 3316 A7 Reached Mainframe 300 Met R17 at Cetus 500 Used Core Reset Matrix 3000 Met Warlord at Research 2000 Scanned by Researcher 500 Met Warlord at Command 2000 Win 3000 Friendly Fire -695 Cogmind --------- Core Integrity 426/1600 Matter 79/425 Energy 254/260 System Corruption 0% Temperature Cool (15) Movement Flying (31) Location To Fleet Rendezvous Parts ------- > --- POWER (3) -------- Light Antimatter Reactor Light Quantum Reactor > --- PROPULSION (7) --- Cooled Nuclear Pulse Thruster Impulse Thruster Array Impulse Thruster Array > --- UTILITY (13) ----- Advanced Quantum Shading Machine Advanced Visual Processing Unit Experimental Melee Analysis Suite Experimental Melee Analysis Suite Improved Armor Integrity Analyzer Experimental Hacking Suite Experimental Hacking Suite Experimental Hacking Suite Spacefold Activator > --- WEAPON (2) ------- Heavy Pick > --- INVENTORY (5) ---- Faulty Cooled Nuclear Pulse Thruster Experimental Melee Analysis Suite Experimental Armor Integrity Analyzer Centrium Medium Armor Plating Transdimensional Reconstructor Peak State ------------ > --- POWER ------------ Backup Power VII Micro Antimatter Reactor Micro Antimatter Reactor > --- PROPULSION ------- Cooled VTOL Module Cooled Field Propulsion Drive Cooled Field Propulsion Drive Q-thruster Improved Diametric Drive Impulse Thruster Array > --- UTILITY ---------- Large Storage Unit Advanced Quantum Shading Machine Advanced Visual Processing Unit Experimental Sensor Array Experimental Signal Interpreter Improved Armor Integrity Analyzer Centrium Medium Armor Plating Centrium Medium Armor Plating Advanced Hacking Suite Experimental Hacking Suite Experimental Hacking Suite Experimental Hacking Suite Spacefold Activator > --- WEAPON ----------- Sigix Broadsword > --- INVENTORY -------- Micro Antimatter Reactor Compact Particle Reactor Nuclear Pulse Array Impulse Thruster Array Experimental Melee Analysis Suite Experimental Melee Analysis Suite Experimental Melee Analysis Suite Experimental Armor Integrity Analyzer Femtoactuators Experimental Phase Shifter Transdimensional Reconstructor Nova Cannon Tactical Quantum Warhead [Rating: 218] Favorites ----------- Power Micro Antimatter Reactor Engine Reinforced Ion Engine Power Core Light Nuclear Core Reactor Micro Antimatter Reactor Propulsion Cooled Field Propulsion Drive Treads Armored Treads Flight Unit Cooled Field Propulsion Drive Utility Experimental Hacking Suite Device Experimental Sensor Array Storage Medium Storage Unit Processor Advanced Signal Interpreter Hackware Experimental Hacking Suite Protection Experimental Utility Shielding Artifact Spacefold Activator Weapon Advanced Datajack Energy Gun Heavy Particle Gun Energy Cannon Heavy Plasma Cannon Ballistic Gun Autogun Launcher Mini Smartbomb Launcher Impact Weapon Shock Maul Slashing Weapon Greatsword Piercing Weapon Spear Special Melee Weapon Advanced Datajack Build | -11 -10 -9 -9 -8 -7 -7 -7 -7 -7 -7 -6 -6 -6 -6 -6 -6 -6 -6 -5 -5 -5 -5 -5 -5 -4 -4 -4 -4 -4 -4 -4 -3 -3 -3 -3 -2 -1 -1 ------- Run | Jun Mat Mat Min Mat Fac Was Fac Low Low Zio Pro Fac Was Fac Ext Cet Arc Hub Fac Was Fac Upp Upp War Pro Fac Was Fac Upp Upp Zhi Pro Res Qua Sec Res Acc Com Slots Evolved 18 | . . 2 . 2 2 . . . . . . 2 . . . . . . 2 . . . . . . 2 . . . . . . 2 . . 2 2 . Power 2 | . . . . . . . . . . . . . . . . . . . . . . . . . . 1 . . . . . . . . . . 1 . Propulsion 5 | . . 1 . 1 . . . . . . . 1 . . . . . . . . . . . . . . . . . . . . 1 . . 1 . . Utility 11 | . . 1 . 1 2 . . . . . . 1 . . . . . . 2 . . . . . . 1 . . . . . . 1 . . 1 1 . Weapon . | . . . . . . . . . . . . . . . . . . . . . . . . . . . . . . . . . . . . . . . Parts Attached 669 | 6 19 30 4 29 46 . 32 4 3 11 2 50 5 50 10 6 2 8 21 . 69 . 3 14 1 33 . 44 . 2 1 5 27 20 14 31 37 30 Power 67 | 1 3 3 . 1 5 . 1 . . . . 8 . 5 3 1 . 1 4 . 4 . . . . 3 . 4 . . . . 3 . . 8 4 5 Engine 10 | 1 3 3 . 1 . . . . . . . . . . . . . . 1 . . . . . . 1 . . . . . . . . . . . . Core 30 | . . . . . 5 . 1 . . . . 7 . 5 3 1 . 1 3 . 3 . . . . . . . . . . . . . . 1 . . Reactor 27 | . . . . . . . . . . . . 1 . . . . . . . . 1 . . . . 2 . 4 . . . . 3 . . 7 4 5 Propulsion 103 | 2 3 13 . 4 9 . 5 1 . 3 . 8 2 5 . 2 . 2 2 . 9 . . 1 . . . 2 . . . . 7 . 2 5 11 5 Treads 20 | 2 3 12 . 3 . . . . . . . . . . . . . . . . . . . . . . . . . . . . . . . . . . Leg . | . . . . . . . . . . . . . . . . . . . . . . . . . . . . . . . . . . . . . . . Wheel . | . . . . . . . . . . . . . . . . . . . . . . . . . . . . . . . . . . . . . . . Hover . | . . . . . . . . . . . . . . . . . . . . . . . . . . . . . . . . . . . . . . . Flight 83 | . . 1 . 1 9 . 5 1 . 3 . 8 2 5 . 2 . 2 2 . 9 . . 1 . . . 2 . . . . 7 . 2 5 11 5 Utility 302 | 1 4 8 4 12 26 . 19 1 3 6 . 23 1 25 . . . . 8 . 30 . 1 12 . 15 . 21 . 2 1 2 7 8 10 18 19 15 Device 85 | . 2 . 2 3 11 . 10 . 2 2 . 8 . 4 . . . . 1 . 5 . . 5 . 4 . 4 . . . 1 3 1 2 4 4 7 Storage 8 | 1 2 . . . 2 . 1 . 1 . . . . . . . . . . . . . . . . 1 . . . . . . . . . . . . Processor 33 | . . 3 1 1 4 . 2 . . 3 . 3 . 2 . . . . . . . . . . . 1 . 1 . 1 . . . . . 5 4 2 Hackware 60 | . . . . 1 9 . 6 1 . 1 . 8 . 7 . . . . 3 . 10 . . 1 . 5 . 3 . . . . 1 . 1 2 1 . Protection 107 | . . 5 1 7 . . . . . . . 4 1 12 . . . . 4 . 15 . 1 6 . 4 . 13 . 1 1 1 3 5 6 3 9 5 Artifact 9 | . . . . . . . . . . . . . . . . . . . . . . . . . . . . . . . . . . 2 1 4 1 1 Weapon 197 | 2 9 6 . 12 6 . 7 2 . 2 2 11 2 15 7 3 2 5 7 . 26 . 2 1 1 15 . 17 . . . 3 10 12 2 . 3 5 Energy Gun 7 | 1 1 2 . 3 . . . . . . . . . . . . . . . . . . . . . . . . . . . . . . . . . . Energy Cannon 53 | . . 1 . . . . . . . . . . . 6 . . . 4 3 . 12 . . . . 7 . 7 . . . 1 5 4 1 . . 2 Ballistic Gun 17 | 1 6 3 . 5 . . . . . . . . 1 . . . . . . . . . 1 . . . . . . . . . . . . . . . Ballistic Cannon . | . . . . . . . . . . . . . . . . . . . . . . . . . . . . . . . . . . . . . . . Launcher 22 | . . . . 1 2 . 2 1 . . . 1 . 1 2 2 1 1 . . 1 . . 1 . . . 1 . . . . . 2 . . 1 2 Special Weapon . | . . . . . . . . . . . . . . . . . . . . . . . . . . . . . . . . . . . . . . . Impact Weapon 48 | . 2 . . . 1 . . . . . . 1 . . . . . . 3 . 12 . . . 1 7 . 9 . . . 2 5 5 . . . . Slashing Weapon 29 | . . . . 3 . . 2 1 . 2 2 4 . 7 3 1 1 . . . . . . . . . . . . . . . . 1 1 . 1 . Piercing Weapon 5 | . . . . . 1 . 1 . . . . 1 . . . . . . . . . . . . . . . . . . . . . . . . 1 1 Special Melee Weapon 16 | . . . . . 2 . 2 . . . . 4 1 1 2 . . . 1 . 1 . 1 . . 1 . . . . . . . . . . . . Unidentified Prototypes 43 | . 1 2 . 4 3 . . . 1 5 . 3 . 2 . . . . 1 . 2 . . 6 . 1 . 3 . . 1 . . 3 2 . 2 1 Parts Lost 61 | . 1 6 . 4 5 . 4 3 . 1 . 4 . . 1 1 . 2 . . 1 . . . . . . 1 . . . . . . 4 2 9 12 Power 12 | . 1 1 . . 1 . 1 . . . . 1 . . 1 . . . . . 1 . . . . . . . . . . . . . . . 2 3 Propulsion 21 | . . 1 . . 1 . 2 1 . . . 2 . . . 1 . 2 . . . . . . . . . . . . . . . . 1 1 5 4 Utility 22 | . . 2 . 3 2 . 1 2 . 1 . 1 . . . . . . . . . . . . . . . 1 . . . . . . 3 1 1 4 Weapon 6 | . . 2 . 1 1 . . . . . . . . . . . . . . . . . . . . . . . . . . . . . . . 1 1 Highest Loss Streak 5 | . 1 2 . 1 2 . 1 3 . 1 . 1 . . 1 1 . 2 . . 1 . . . . . . 1 . . . . . . 2 2 5 4 To Critical Strikes 1 | . . 1 . . . . . . . . . . . . . . . . . . . . . . . . . . . . . . . . . . . . Average Slot Usage (%) 95 | . 99 98 100 98 97 84 93 92 83 91 92 89 99 92 93 91 90 87 94 100 98 94 96 99 100 97 100 99 100 99 99 100 99 98 94 89 88 76 Engine 2 | . 13 10 11 9 . . . . . . . . . . . . . . . . . . . . . . . . . . . . . . . . . . Core 2 | . . . . . 6 7 6 7 7 7 7 5 6 5 5 6 6 6 4 5 4 . . . . . . . . . . . . . . . 2 . Reactor 2 | . . . . . . . . . . . . . . . . . . . . . . 5 5 5 5 8 10 9 10 10 10 10 9 9 9 7 8 5 Treads 8 | . 28 32 33 36 . . . . . . . . . . . . . . . . . . . . . . . . . . . . . . . . . . Flight 21 | . . . . . 29 30 29 30 30 30 30 32 33 32 33 31 33 33 29 29 29 29 29 29 29 26 26 26 26 26 26 26 27 28 28 26 22 17 Device 7 | . 13 . 3 8 6 . 6 7 6 6 7 6 6 6 6 6 6 6 5 5 5 5 5 5 5 9 10 10 10 10 10 10 13 14 14 13 7 6 Storage 6 | . 14 11 11 9 7 7 7 7 7 7 7 6 6 6 6 6 6 6 5 5 5 5 5 5 5 5 5 5 5 5 5 5 4 4 4 4 4 3 Processor 5 | . . 11 3 . 5 7 7 7 7 7 7 6 6 6 6 6 6 6 5 5 5 5 5 5 5 5 5 5 5 5 5 5 4 4 4 4 8 12 Hackware 15 | . . . . 4 24 23 22 23 15 22 23 18 20 21 20 20 20 20 22 23 23 23 23 23 23 21 21 21 21 21 21 21 19 19 18 16 16 13 Protection 6 | . . 8 15 12 . . . . . . . 3 6 3 6 6 6 6 9 11 9 5 7 10 11 10 10 9 10 9 9 10 8 7 7 6 9 7 Energy Gun 2 | . 9 5 11 9 . . . . . . . . . . . . . . . . . . . . . . . . . . . . . . . . . . Ballistic Gun 3 | . 18 16 11 6 . . . . . . . . . . . . . . . . . . . . . . . . . . . . . . . . . . Impact Weapon 1 | . . . . . . . . . . . . . 6 1 . . . . 3 5 4 5 5 1 2 4 5 4 5 5 5 4 3 3 . . . . Slashing Weapon 1 | . . . . 2 1 . . 6 7 7 7 5 . 4 1 . . . . . . . . . . . . . . . . . . . 4 4 3 . Special Melee Weapon 1 | . . . . . 5 . 1 . . . . . 5 1 . . . . 4 5 5 5 5 5 5 5 5 5 5 5 5 5 3 . . . . . Naked Turns . | . . . . . . . . . . . . . . . . . . . . . . . . . . . . . . . . . . . . . . . Heaviest Build 112 | 12 92 103 110 112 21 17 21 21 21 21 21 25 23 24 24 23 24 23 25 25 32 28 32 33 33 60 53 54 53 53 53 53 63 62 58 63 69 74 Greatest Support 83 | 40 46 66 60 83 21 21 23 21 21 21 21 35 25 26 26 26 26 37 26 26 33 33 33 35 47 55 55 55 55 55 55 55 68 74 62 69 75 77 Greatest Overweight (x) 2 | . 1 2 1 1 . . . 1 . 1 . 1 . . . . . . . . 1 . . . . 1 . . . . . . 1 . . 1 1 . Average Overweight (x) . | . . 1 1 1 . . . . . . . . . . . . . . . . . . . . . . . . . . . . . . . . . . Largest Inventory Capacity 25 | 8 25 25 25 25 25 10 10 10 10 10 10 10 10 10 10 10 10 10 10 10 10 10 10 10 10 15 15 15 15 15 15 15 15 15 15 15 15 15 Average Capacity 14 | 7 14 25 25 25 10 10 10 10 9 10 10 10 10 10 10 10 10 10 10 10 10 10 10 10 10 13 15 15 15 15 15 15 15 15 15 15 15 14 Most Carried 25 | 4 22 25 25 25 24 9 10 10 9 10 10 10 10 10 10 10 9 9 10 10 10 10 10 10 10 15 15 15 15 15 15 15 15 15 15 15 15 15 Average Carried 13 | 1 13 24 24 24 9 9 9 9 7 8 9 9 8 8 8 8 8 8 9 10 9 10 9 9 10 11 15 14 15 15 14 15 14 14 13 12 14 12 Final Capacity 25 | 8 25 25 25 25 10 10 10 10 10 10 10 10 10 10 10 10 10 10 10 10 10 10 10 10 10 15 15 15 15 15 15 15 15 15 15 15 15 5 Final Carried 25 | 4 22 25 25 25 9 9 10 8 8 9 10 8 8 9 9 9 9 7 10 10 10 10 9 10 10 15 15 15 15 15 15 15 15 15 12 15 13 5 Class Distribution -------------------- 37% | Hacker-Sprinter 29% | Wizard-Sprinter 25% | Mutant Dominant Class ---------------- Mutant | -10/Materials Mutant | -9/Materials Mutant | -9/Mines Mutant | -8/Materials Hacker-Sprinter | -7/Factory Hacker-Sprinter | -7/Waste Hacker-Sprinter | -7/Factory Hacker-Sprinter | -7/Lower Caves Sprinter | -7/Lower Caves Hacker-Sprinter | -7/Zion Hacker-Sprinter | -6/Proximity Caves Hacker-Sprinter | -6/Factory Hacker-Sprinter | -6/Waste Hacker-Sprinter | -6/Factory Hacker-Sprinter | -6/Extension Hacker-Sprinter | -6/Cetus Hacker-Sprinter | -6/Archives Hacker-Sprinter | -6/Hub_04(d) Hacker-Sprinter | -5/Factory Hacker-Sprinter | -5/Waste Hacker-Sprinter | -5/Factory Wizard-Sprinter | -5/Upper Caves Wizard-Sprinter | -5/Upper Caves Wizard-Sprinter | -5/Warlord Wizard-Sprinter | -4/Proximity Caves Wizard-Sprinter | -4/Factory Wizard-Sprinter | -4/Waste Wizard-Sprinter | -4/Factory Wizard-Sprinter | -4/Upper Caves Wizard-Sprinter | -4/Upper Caves Wizard-Sprinter | -4/Zhirov Wizard-Sprinter | -3/Proximity Caves Wizard-Sprinter | -3/Research Wizard-Sprinter | -3/Quarantine Wizard-Sprinter | -3/Section 7 Hacker-Sprinter | -2/Research Wizard-Scout | -1/Access Hacker-Sprinter | -1/Command Resources | -11 -10 -9 -9 -8 -7 -7 -7 -7 -7 -7 -6 -6 -6 -6 -6 -6 -6 -6 -5 -5 -5 -5 -5 -5 -4 -4 -4 -4 -4 -4 -4 -3 -3 -3 -3 -2 -1 -1 ----------- Run | Jun Mat Mat Min Mat Fac Was Fac Low Low Zio Pro Fac Was Fac Ext Cet Arc Hub Fac Was Fac Upp Upp War Pro Fac Was Fac Upp Upp Zhi Pro Res Qua Sec Res Acc Com Matter Collected 11281 | 240 426 1075 175 627 455 . 340 179 99 41 147 594 208 435 842 438 390 . 285 95 685 . 30 1245 . 290 . 663 10 58 20 21 240 123 2 548 161 94 Remotely . | . . . . . . . . . . . . . . . . . . . . . . . . . . . . . . . . . . . . . . . Salvage Created 12857 | . 730 1308 120 1613 317 . 449 229 22 . 135 886 . 640 951 147 . 43 285 . 883 . 182 864 . 602 . 772 72 101 165 74 158 168 . 313 428 200 Parts 589 | . 46 94 6 107 16 . 46 5 1 . 3 55 . 23 37 8 . 1 3 . 11 . . 24 . 6 . 16 . 1 1 . 2 2 . 28 22 25 Haulers Intercepted 32 | . 2 4 . 4 1 . 4 . . . . 4 . 2 1 . . . . . 3 . . . . 2 . 1 . . . . 1 . . 1 2 . Recyclers Shooed 7 | . 2 . . . . . 1 . . . . 1 . . 2 . . . . . . . . . . 1 . . . . . . . . . . . . Parts Field Recycled . | . . . . . . . . . . . . . . . . . . . . . . . . . . . . . . . . . . . . . . . Retrieved Matter . | . . . . . . . . . . . . . . . . . . . . . . . . . . . . . . . . . . . . . . . Parts Self-Destructed 14 | . . . . . . . . 4 1 . 3 . . . . . . . . . . . . . 5 . . . . . 1 . . . . . . . Prevented 4 | . . . . . . . . . . . . . . . . . . . . . . . 1 . . . . . . 3 . . . . . . . . Kills | -11 -10 -9 -9 -8 -7 -7 -7 -7 -7 -7 -6 -6 -6 -6 -6 -6 -6 -6 -5 -5 -5 -5 -5 -5 -4 -4 -4 -4 -4 -4 -4 -3 -3 -3 -3 -2 -1 -1 ------- Run | Jun Mat Mat Min Mat Fac Was Fac Low Low Zio Pro Fac Was Fac Ext Cet Arc Hub Fac Was Fac Upp Upp War Pro Fac Was Fac Upp Upp Zhi Pro Res Qua Sec Res Acc Com Combat Hostiles Destroyed 149 | . 13 25 4 29 2 . 9 . . . 1 4 . . 3 3 . . . . 1 . . 32 . . . 8 . 1 . . . . . 2 . 12 Melee 11 | . . . . . 2 . 1 . . . 1 . . . 1 . . . . . 1 . . . . . . 1 . . . . . . . 2 . 2 Guns 67 | . 13 25 4 25 . . . . . . . . . . . . . . . . . . . . . . . . . . . . . . . . . . AOE 67 | . . . . 4 . . 8 . . . . 4 . . 2 3 . . . . . . . 32 . . . 4 . . . . . . . . . 10 Classes Destroyed 19 | . 7 3 . 1 1 . 1 1 . . 1 . . . . . . . . . . . . 4 . . . . . . . . . . . . . . Worker 33 | . 1 2 . 1 . . 1 . . . . 9 . 1 3 . . 2 2 . 2 . . . . 1 . 2 . . . . . 1 . . 1 4 Builder 15 | . . 2 . 1 . . . . . . . 2 . . . . . . 1 . 2 . . . . . . 2 . . . . . . . 3 2 . Tunneler 8 | . . . . . . . 1 . . . . 1 . . 2 . . . . . 3 . . . . . . 1 . . . . . . . . . . Hauler 32 | . 2 4 . 4 1 . 4 . . . . 4 . 2 1 . . . . . 3 . . . . 2 . 1 . . . . 1 . . 1 2 . Recycler 19 | . 1 . . 1 1 . . . . . . 1 . 3 6 . . . 1 . 2 . . . . 1 . 1 . . . . . 1 . . . . Minesweeper 2 | . . . . . . . . 1 . . . . . . . . . . . . . . . . . . . . . 1 . . . . . . . . Mechanic 3 | . . . . . . . . . . . . . . . . . . . . . . . . 3 . . . . . . . . . . . . . . Operator 13 | . 3 3 . 2 1 . 2 . . . . 1 . . . . . . . . . . . . . . . 1 . . . . . . . . . . Drone 1 | . . . . . . . . . . . 1 . . . . . . . . . . . . . . . . . . . . . . . . . . . Watcher 62 | . 1 3 . 5 2 . 2 . . . . 5 . 4 2 1 . . 3 . 8 . . . . 7 . 9 . . . . 1 2 . 2 4 1 Swarmer 63 | . 3 7 2 11 . . 8 . . . . 4 . . . . . . . . 1 . . 7 . . . 8 . 1 . . . . . 1 . 10 Grunt 43 | . 10 10 1 8 . . . . . . . . . . . 3 . . . . . . . 11 . . . . . . . . . . . . . . Brawler 10 | . . 3 1 . . . . . . . . . . . 1 . . . . . . . . 5 . . . . . . . . . . . . . . Duelist 4 | . . . . . . . . . . . . . . . . . . . . . . . . 4 . . . . . . . . . . . . . . Protector 2 | . . . . . . . . . . . . . . . . . . . . . . . . 2 . . . . . . . . . . . . . . Sentry 14 | . . 5 . 7 . . . . . . . . . . 2 . . . . . . . . . . . . . . . . . . . . . . . Hunter 3 | . . . . 3 . . . . . . . . . . . . . . . . . . . . . . . . . . . . . . . . . . Programmer 8 | . . . . . 2 . 1 . . . . . . . . . . . . . . . . 2 . . . . . . . . . . . 1 . 2 Striker 1 | . . . . . . . . . . . . . . . . . . . . . . . . 1 . . . . . . . . . . . . . . Packrat 1 | . . . . . . . . . . . . . . . . . . . . . . . . . . . . . . 1 . . . . . . . . Thug 1 | . . . . . . . . . . . . . . . . . . . . . . . . 1 . . . . . . . . . . . . . . Best Kill Streak 21 | . 4 4 2 5 1 . 6 1 . . 1 7 . 3 9 2 . 2 3 . 9 . . 21 . 2 . 4 . 1 . . 1 1 . 5 2 9 Combat Bots Only 19 | . 3 4 2 4 1 . 4 . . . 1 4 . . 1 2 . . . . 1 . . 19 . . . 4 . 1 . . . . . 1 . 5 Max Kills in Single Turn 7 | . 1 2 1 2 1 . 3 1 . . 1 4 . 1 3 1 . 1 1 . 1 . . 7 . 1 . 3 . 1 . . 1 1 . 1 1 5 Gunslinging 1 | . . 1 . . . . . . . . . . . . . . . . . . . . . . . . . . . . . . . . . . . . Exploded 6 | . . . . 2 . . 3 . . . . 2 . . 1 1 . . . . . . . 6 . . . 3 . . . . . . . . . 3 Melee 1 | . . . . . 1 . 1 . . . 1 . . . 1 . . . . . 1 . . . . . . 1 . . . . . . . 1 . 1 Uniques/NPCs Destroyed . | . . . . . . . . . . . . . . . . . . . . . . . . . . . . . . . . . . . . . . . Combat | -11 -10 -9 -9 -8 -7 -7 -7 -7 -7 -7 -6 -6 -6 -6 -6 -6 -6 -6 -5 -5 -5 -5 -5 -5 -4 -4 -4 -4 -4 -4 -4 -3 -3 -3 -3 -2 -1 -1 -------- Run | Jun Mat Mat Min Mat Fac Was Fac Low Low Zio Pro Fac Was Fac Ext Cet Arc Hub Fac Was Fac Upp Upp War Pro Fac Was Fac Upp Upp Zhi Pro Res Qua Sec Res Acc Com Damage Taken 16648 | . 677 1166 127 1546 497 . 697 286 . . . 616 . 131 441 282 53 329 34 . 130 . . 43 . 109 . 371 . 85 . 52 576 579 1919 434 2389 3079 Core 3897 | . 135 96 18 105 130 . 323 83 . . . 212 . 6 154 87 53 158 15 . 31 . . . . 21 . 87 . 12 . . 67 100 743 87 456 718 Absorbed by Shields 285 | . . . . . . . . . . . . 6 . . 68 124 . . . . . . . . . . . . . . . . . . . . . 87 Redirected to Shielding 736 | . . . . . . . . . . . . 14 . 9 68 36 . 17 6 . 31 . . . . 20 . 46 . . . . 42 83 226 . 19 119 Regen/Repaired (Parts) 4057 | . . . . 11 25 . 150 . . 278 . 27 . 160 . . . . 53 . 240 . . 25 . . . 477 . . . . 306 80 1047 284 301 593 Core Remaining (%) 59 | 100 46 . 71 80 . . . . . . 23 . . . . . . 21 . . . . . . 95 . . . . . . 89 . . 9 94 . 26 Volleys Fired 556 | . 63 109 13 96 . . 9 6 . . . 3 . 16 21 18 5 13 6 . 36 . . 43 . 12 . 25 . . . 6 38 7 3 . . 8 Largest 2 | . 2 2 2 2 . . 1 1 . . . 1 . 1 1 1 1 1 1 . 1 . . 1 . 1 . 1 . . . 1 1 1 1 . . 1 Hottest 113 | . 70 79 79 110 . . 30 30 . . . 30 . 90 80 80 80 90 90 . 90 . . 80 . 90 . 90 . . . 90 90 113 113 . . 113 Shots Fired 821 | . 126 217 27 177 . . 9 6 . . . 3 . 16 20 18 5 13 6 . 36 . . 43 . 12 . 25 . . . 6 38 7 3 . . 8 Gun 544 | . 126 217 27 174 . . . . . . . . . . . . . . . . . . . . . . . . . . . . . . . . . . Cannon 157 | . . . . . . . . . . . . . . 16 . . . 9 6 . 36 . . . . 12 . 21 . . . 6 38 7 3 . . 3 Launcher 120 | . . . . 3 . . 9 6 . . . 3 . . 20 18 5 4 . . . . . 43 . . . 4 . . . . . . . . . 5 Special . | . . . . . . . . . . . . . . . . . . . . . . . . . . . . . . . . . . . . . . . Kinetic 359 | . 74 195 13 77 . . . . . . . . . . . . . . . . . . . . . . . . . . . . . . . . . . Thermal 342 | . 52 22 14 97 . . . . . . . . . 16 . . . 9 6 . 36 . . . . 12 . 21 . . . 6 38 7 3 . . 3 Explosive 120 | . . . . 3 . . 9 6 . . . 3 . . 20 18 5 4 . . . . . 43 . . . 4 . . . . . . . . . 5 Electromagnetic . | . . . . . . . . . . . . . . . . . . . . . . . . . . . . . . . . . . . . . . . Robot Hit Streak 29 | . 18 29 6 17 . . . . . . . . . 3 . 5 6 . . . . . . 9 . . . . . . . . . . . . . . Robot Miss Streak 5 | . 2 5 4 2 . . . . . . . . . 1 . . . . . . . . . . . . . . . . . . . . . . . 1 Penetration Max . | . . . . . . . . . . . . . . . . . . . . . . . . . . . . . . . . . . . . . . . Secondary Targets 9 | . 2 3 . 4 . . . . . . . . . . . . . . . . . . . . . . . . . . . . . . . . . . Max Gunslinging Chain 1 | . 1 1 . 1 . . . . . . . . . . . . . . . . . . . . . . . . . . . . . . . . . . Shots Hit Robots 659 | . 95 141 12 125 21 . 27 6 1 . 5 31 . 21 26 2 1 . 8 . 26 . 3 8 . 15 . 22 4 3 8 1 4 3 1 12 15 12 Core Hits 518 | . 37 55 4 66 5 . 23 4 1 . 2 21 . 8 39 41 8 10 1 . 3 . . 134 . 2 . 8 . 1 2 . . 1 . 2 5 35 Critical Kills 8 | . . 2 . . . . . . . . . . . . . . . . 1 . 1 . . . . . . 2 . . 2 . . . . . . . Critical Parts Destroyed 31 | . . . . 1 . . . . . . . 1 . . . . . . 2 . 10 . . . . 6 . 9 . . . 1 . 1 . . . . Critical Strikes 65 | . 5 2 . 10 1 . 5 . . . . 5 . . 2 . . . 3 . 11 . . . . 6 . 11 . . 2 1 . 1 . . . . Burn 14 | . 5 . . 9 . . . . . . . . . . . . . . . . . . . . . . . . . . . . . . . . . . Destroy 3 | . . 2 . 1 . . . . . . . . . . . . . . . . . . . . . . . . . . . . . . . . . . Smash 36 | . . . . . . . . . . . . 1 . . . . . . 3 . 11 . . . . 6 . 11 . . 2 1 . 1 . . . . Sever 6 | . . . . . . . . . . . . 4 . . 2 . . . . . . . . . . . . . . . . . . . . . . . Impale 6 | . . . . . 1 . 5 . . . . . . . . . . . . . . . . . . . . . . . . . . . . . . . Melee Attacks 955 | . 4 . . 23 75 . 92 12 4 8 15 113 . 57 34 1 1 . 20 . 59 . 3 53 1 54 . 73 5 4 8 3 71 43 35 22 39 23 Impact 410 | . 4 . . . 3 . . . . . . 14 . 11 . . . . 19 . 57 . 3 48 1 53 . 72 2 4 4 3 69 43 . . . . Slashing 336 | . . . . 23 8 . 7 12 4 8 15 96 . 42 25 1 1 . . . . . . . . . . . . . . . . . 35 22 37 . Piercing 171 | . . . . . 61 . 85 . . . . . . . . . . . . . . . . . . . . . . . . . . . . . 2 23 Sneak Attacks 122 | . . . . 3 5 . 6 1 . . . 20 . 10 12 . . . 6 . 15 . . 5 . 5 . 9 3 2 4 . 4 1 1 4 5 1 Combat Hostiles 1 | . . . . . . . . . . . . . . . 1 . . . . . . . . . . . . . . . . . . . . . . . Follow-up Attacks . | . . . . . . . . . . . . . . . . . . . . . . . . . . . . . . . . . . . . . . . Damage Inflicted 42500 | . 1279 2206 207 2833 703 . 2005 642 113 . 366 3560 . 1161 3561 1515 295 230 648 . 2184 . 287 7959 . 1147 . 2191 99 245 421 93 273 363 200 1514 1894 2306 Guns 5759 | . 1250 2178 187 2144 . . . . . . . . . . . . . . . . . . . . . . . . . . . . . . . . . . Cannons 140 | . . . . . . . . . . . . . . 98 . . . . . . . . . . . . . . . . . . . 42 . . . . Explosions 16452 | . . . . 263 . . 705 . . . . 847 . . 2424 1515 295 230 . . . . . 7959 . . . 438 . . . . . . . . . 1776 Melee 20022 | . . . . 376 703 . 1300 642 113 . 366 2713 . 1063 1137 . . . 648 . 2184 . 287 . . 1147 . 1753 99 245 421 93 273 321 200 1514 1894 530 Ramming 127 | . 29 28 20 50 . . . . . . . . . . . . . . . . . . . . . . . . . . . . . . . . . . Kinetic 3495 | . 708 1942 56 789 . . . . . . . . . . . . . . . . . . . . . . . . . . . . . . . . . . Thermal 2972 | . 542 236 131 1355 . . . . . . . 568 . 98 . . . . . . . . . . . . . . . . . . . 42 . . . . Explosive 15654 | . . . . 263 . . 705 . . . . 279 . . 2424 1515 295 . . . . . . 7959 . . . 438 . . . . . . . . . 1776 Electromagnetic 230 | . . . . . . . . . . . . . . . . . . 230 . . . . . . . . . . . . . . . . . . . . Impact 8165 | . . . . . . . . . . . . 355 . 339 . . . . 648 . 2184 . 287 . . 1147 . 1753 99 245 421 93 273 321 . . . . Slashing 9530 | . . . . 376 132 . 74 642 113 . 366 2358 . 724 1137 . . . . . . . . . . . . . . . . . . . 200 1514 1894 . Piercing 2327 | . . . . . 571 . 1226 . . . . . . . . . . . . . . . . . . . . . . . . . . . . . . 530 Highest Corruption 22 | . . 9 9 . 7 12 16 22 22 22 . 4 4 5 5 6 6 7 . . . . . . . . 6 14 14 14 14 14 . . . . . . Average Corruption 8 | . . 8 9 . 3 11 9 16 22 22 . 4 4 4 5 5 6 6 . . . . . . . . 6 9 14 14 14 14 . . . . . . Corruption Purged 5 | . . . . . . . 5 . . . . . . . . . . . . . . . . . . . . . . . . . . . . . . . Corruption Blocked 32 | . . . . . . . . . . . . . . . . . . . . . . . . 15 . . . . . . . . . . . 2 . 15 Effects 379 | . . 65 38 . 13 7 63 16 7 3 . 16 3 23 18 7 2 3 . . . . . . . . 1 70 1 12 4 7 . . . . . . Message Errors 103 | . . 17 7 . 6 2 16 6 1 2 . 4 1 4 6 2 . . . . . . . . . . 1 21 . 3 3 1 . . . . . . Matter Fused 90 | . . 10 10 . . 2 14 2 3 . . 4 1 9 4 3 . . . . . . . . . . . 20 . 5 . 3 . . . . . . Heat Flow Errors 42 | . . 5 4 . 3 . 8 5 1 . . 2 . 3 1 . 1 1 . . . . . . . . . 7 . 1 . . . . . . . . Energy Discharges 48 | . . 11 3 . . . 14 1 1 . . 1 . 4 2 . 1 2 . . . . . . . . . 8 . . . . . . . . . . Parts Rejected 7 | . . 3 . . . . 1 . . . . . . . 1 1 . . . . . . . . . . . . . . . 1 . . . . . . Parts Fused 4 | . . . . . . . . . . . . 2 . . . . . . . . . . . . . . . 2 . . . . . . . . . . Data Loss (minor) 38 | . . 6 5 . 2 1 5 . . . . 2 1 . 2 . . . . . . . . . . . . 9 1 2 1 1 . . . . . . Data Loss (major) 22 | . . 5 3 . 2 . 3 1 1 1 . 1 . 2 1 1 . . . . . . . . . . . 1 . . . . . . . . . . Misfires 6 | . . 3 3 . . . . . . . . . . . . . . . . . . . . . . . . . . . . . . . . . . . Alerts 7 | . . 2 1 . . . 1 . . . . . . 1 . . . . . . . . . . . . . 1 . . . 1 . . . . . . Misdirections 6 | . . . . . . 2 1 1 . . . . . . . . . . . . . . . . . . . 1 . 1 . . . . . . . . Weapon Failures 6 | . . 3 2 . . . . . . . . . . . 1 . . . . . . . . . . . . . . . . . . . . . . . Overload Shots . | . . . . . . . . . . . . . . . . . . . . . . . . . . . . . . . . . . . . . . . Overflow Damage 8689 | . . . . 19 120 . 439 108 . . 79 812 . 249 370 29 15 28 412 . 1461 . 142 105 . 620 . 1217 86 56 215 93 229 256 130 598 595 206 Projectiles 3 | . . . . . . . . . . . . . . 3 . . . . . . . . . . . . . . . . . . . . . . . . Explosions 688 | . . . . . . . 54 . . . . 271 . . 65 29 15 28 . . . . . 105 . . . . . . . . . . . . . 121 Melee 7998 | . . . . 19 120 . 385 108 . . 79 541 . 246 305 . . . 412 . 1461 . 142 . . 620 . 1217 86 56 215 93 229 256 130 598 595 85 Knockbacks 23 | . . . . 3 . . . . . . . 1 . . . . . . 1 . 5 . 1 . . 3 . 4 . 2 . 1 1 1 . . . . Impact 22 | . . . . 2 . . . . . . . 1 . . . . . . 1 . 5 . 1 . . 3 . 4 . 2 . 1 1 1 . . . . Kinetic . | . . . . . . . . . . . . . . . . . . . . . . . . . . . . . . . . . . . . . . . Secondary 1 | . . . . 1 . . . . . . . . . . . . . . . . . . . . . . . . . . . . . . . . . . Self-Inflicted Damage 567 | . . . . 16 . . 38 . . . . 164 . . . . . 238 . . . . . . . . . . . . . . . . . . . 111 Shots 9 | . . . . 1 . . 1 . . . . 2 . . . . . 3 . . . . . . . . . . . . . . . . . . . 2 Rammed 16 | . 5 4 1 6 . . . . . . . . . . . . . . . . . . . . . . . . . . . . . . . . . . Targets Rammed 17 | . 5 5 1 6 . . . . . . . . . . . . . . . . . . . . . . . . . . . . . . . . . . Kicked . | . . . . . . . . . . . . . . . . . . . . . . . . . . . . . . . . . . . . . . . Crushed 1 | . . 1 . . . . . . . . . . . . . . . . . . . . . . . . . . . . . . . . . . . . Highest Temperature 655 | . 9 302 329 206 276 . 282 258 154 . . 337 . 256 115 209 206 655 104 . 182 . . 339 110 150 . 388 2 115 2 200 323 270 256 227 200 70 Average Temperature 68 | . 4 60 120 70 107 . 104 106 79 . . 75 . 77 29 55 52 112 40 . 57 . . 63 20 40 . 93 2 91 2 106 61 158 75 65 56 18 Received Heat Transfer 1794 | . 321 393 12 369 93 . 48 . . . . 75 . 18 140 18 . 24 . . 18 . . . . 9 . 18 . . . 9 27 61 42 . 27 72 Effects 9 | . . . . . . . . . . . . 1 . 2 . . . 3 . . . . . . . . . . . . . . . . . 3 . . Shutdowns 1 | . . . . . . . . . . . . . . . . . . 1 . . . . . . . . . . . . . . . . . . . . Energy Bleed 2 | . . . . . . . . . . . . 1 . . . . . . . . . . . . . . . . . . . . . . . 1 . . Interference 4 | . . . . . . . . . . . . . . 2 . . . . . . . . . . . . . . . . . . . . . 2 . . Damage (minor) 2 | . . . . . . . . . . . . . . . . . . 2 . . . . . . . . . . . . . . . . . . . . Siege Activations . | . . . . . . . . . . . . . . . . . . . . . . . . . . . . . . . . . . . . . . . Robots Corrupted . | . . . . . . . . . . . . . . . . . . . . . . . . . . . . . . . . . . . . . . . Combat Hostiles . | . . . . . . . . . . . . . . . . . . . . . . . . . . . . . . . . . . . . . . . Parts Fried 82 | . . . . . . . . . . . . . . 1 . . . . 9 . 23 . 1 . . 14 . 25 1 1 2 . 1 4 . . . . Impact Corruptions 149 | . . . . . . . . . . . . 5 . 2 . . . . 14 . 42 . 7 . . 16 . 35 3 3 6 5 5 6 . . . . Robots Melted . | . . . . . . . . . . . . . . . . . . . . . . . . . . . . . . . . . . . . . . . Combat Hostiles . | . . . . . . . . . . . . . . . . . . . . . . . . . . . . . . . . . . . . . . . Parts Melted 14 | . 3 1 1 8 . . . . . . . . . 1 . . . . . . . . . . . . . . . . . . . . . . . . Heat Transferred 6642 | . 1961 518 296 3330 . . . . . . . 350 . 150 . . . . . . . . . . . . . . . . . . . 37 . . . . Parts Sabotaged . | . . . . . . . . . . . . . . . . . . . . . . . . . . . . . . . . . . . . . . . Parts Stolen . | . . . . . . . . . . . . . . . . . . . . . . . . . . . . . . . . . . . . . . . Parts Stripped . | . . . . . . . . . . . . . . . . . . . . . . . . . . . . . . . . . . . . . . . Power Chain Reactions . | . . . . . . . . . . . . . . . . . . . . . . . . . . . . . . . . . . . . . . . Missiles Intercepted . | . . . . . . . . . . . . . . . . . . . . . . . . . . . . . . . . . . . . . . . Alert | -11 -10 -9 -9 -8 -7 -7 -7 -7 -7 -7 -6 -6 -6 -6 -6 -6 -6 -6 -5 -5 -5 -5 -5 -5 -4 -4 -4 -4 -4 -4 -4 -3 -3 -3 -3 -2 -1 -1 ------- Run | Jun Mat Mat Min Mat Fac Was Fac Low Low Zio Pro Fac Was Fac Ext Cet Arc Hub Fac Was Fac Upp Upp War Pro Fac Was Fac Upp Upp Zhi Pro Res Qua Sec Res Acc Com Peak Influence 1393 | . 220 336 153 482 562 148 603 . . . . 988 347 350 532 989 515 444 245 43 547 . . . . 301 124 414 . . . . 311 504 459 513 456 1393 Initial 456 | . . 8 103 . 179 118 103 . . . . 456 293 244 . 297 395 179 217 43 30 . . . . 17 79 86 . . . . 3 174 222 258 252 212 Average 243 | . 80 191 62 315 250 138 274 . . . . 288 304 195 215 727 450 244 127 43 249 . . . . 119 98 191 . . . . 138 337 324 402 285 845 Maximum Alert Level 4 | . 1 1 . 2 2 . 2 . . . . 3 1 1 2 3 2 2 1 . 2 . . . . 1 . 2 . . . . 1 2 2 2 2 4 Low Security (%) 45 | 100 93 41 100 21 42 100 36 . . . . 40 . 39 65 . . 31 77 100 47 . . . . 67 100 50 . . . . 85 2 . . 17 . Level 1 40 | . 6 58 . 55 46 . 36 . . . . 37 100 60 3 11 36 58 22 . 39 . . . . 32 . 48 . . . . 14 84 81 37 71 33 Level 2 11 | . . . . 22 11 . 27 . . . . 17 . . 30 32 63 10 . . 12 . . . . . . . . . . . . 12 18 62 10 . Level 3 1 | . . . . . . . . . . . . 4 . . . 56 . . . . . . . . . . . . . . . . . . . . . 17 Level 4 1 | . . . . . . . . . . . . . . . . . . . . . . . . . . . . . . . . . . . . . . 47 Level 5 . | . . . . . . . . . . . . . . . . . . . . . . . . . . . . . . . . . . . . . . . High Security . | . . . . . . . . . . . . . . . . . . . . . . . . . . . . . . . . . . . . . . . Max Security . | . . . . . . . . . . . . . . . . . . . . . . . . . . . . . . . . . . . . . . . Squads Dispatched 104 | . 3 3 1 3 7 . 10 . . . . 11 . 9 2 2 . 4 4 . 8 . . . . 8 . 8 . . . . 3 6 3 1 4 4 Investigation 52 | . . . 1 1 5 . 7 . . . . 6 . 7 . 2 . 1 3 . 6 . . . . 5 . 5 . . . . 1 1 1 . . . Extermination 14 | . . . . . 2 . 2 . . . . 2 . 1 . . . . . . . . . . . 1 . 1 . . . . 2 . . . 2 1 Reinforcement 37 | . 3 3 . 2 . . 1 . . . . 3 . 1 2 . . 3 1 . 2 . . . . 1 . 2 . . . . . 5 2 1 2 3 Assault . | . . . . . . . . . . . . . . . . . . . . . . . . . . . . . . . . . . . . . . . Garrison 1 | . . . . . . . . . . . . . . . . . . . . . . . . . . 1 . . . . . . . . . . . . Intercept . | . . . . . . . . . . . . . . . . . . . . . . . . . . . . . . . . . . . . . . . Searches Triggered 10 | . . . . . 1 . 2 . . . . 2 . . . . . . . . . . . . . . . . . . . . . 2 1 . 1 1 Construction Impeded 3 | . . . . . . . . . . . . 1 . . 2 . . . . . . . . . . . . . . . . . . . . . . . Haulers Reinforced 7 | . . . . . . . 1 . . . . 2 . 1 . . . . . . 1 . . . . . . . . . . . . . . 1 1 . Active Scanning Responses . | . . . . . . . . . . . . . . . . . . . . . . . . . . . . . . . . . . . . . . . Cargo Convoy Interrupts 1 | . . . . . 1 . . . . . . . . . . . . . . . . . . . . . . . . . . . . . . . . . Stealth | -11 -10 -9 -9 -8 -7 -7 -7 -7 -7 -7 -6 -6 -6 -6 -6 -6 -6 -6 -5 -5 -5 -5 -5 -5 -4 -4 -4 -4 -4 -4 -4 -3 -3 -3 -3 -2 -1 -1 --------- Run | Jun Mat Mat Min Mat Fac Was Fac Low Low Zio Pro Fac Was Fac Ext Cet Arc Hub Fac Was Fac Upp Upp War Pro Fac Was Fac Upp Upp Zhi Pro Res Qua Sec Res Acc Com Distress Signals 60 | . 2 5 . 3 1 . 3 . . . . 4 . . 2 2 . . 2 . 2 . . 2 . 1 . 6 . . . . 5 2 6 8 3 1 Communications Jammed . | . . . . . . . . . . . . . . . . . . . . . . . . . . . . . . . . . . . . . . . Distress Signals . | . . . . . . . . . . . . . . . . . . . . . . . . . . . . . . . . . . . . . . . Times Spotted 743 | . 28 35 5 50 38 6 46 1 . . 2 58 1 11 18 11 7 4 13 . 28 . . 60 3 26 5 36 1 7 . 1 29 39 52 26 35 61 Peak Tracking Total 21 | . 4 4 3 6 7 6 6 1 . . 2 7 1 4 3 5 2 3 4 . 9 . . 16 2 7 5 8 3 4 . 1 11 11 21 8 17 12 Tactical Retreats 156 | . . . 2 1 17 . 15 . . . . 20 . 5 . 1 . 1 2 . 9 . . . . 8 . 15 . 5 . . 11 7 10 4 9 14 Traps | -11 -10 -9 -9 -8 -7 -7 -7 -7 -7 -7 -6 -6 -6 -6 -6 -6 -6 -6 -5 -5 -5 -5 -5 -5 -4 -4 -4 -4 -4 -4 -4 -3 -3 -3 -3 -2 -1 -1 ------- Run | Jun Mat Mat Min Mat Fac Was Fac Low Low Zio Pro Fac Was Fac Ext Cet Arc Hub Fac Was Fac Upp Upp War Pro Fac Was Fac Upp Upp Zhi Pro Res Qua Sec Res Acc Com Traps Triggered 41 | . 2 3 . . 3 . 3 . . . . 6 . 3 . . . 1 1 . 1 . . . . 2 . 6 . . . . 1 2 1 . 2 4 Indirectly . | . . . . . . . . . . . . . . . . . . . . . . . . . . . . . . . . . . . . . . . Trap Hack Attempts 74 | . . . . . 26 . . . . . . 9 . 3 . . . . 9 . . . . . . 17 . 10 . . . . . . . . . . Triggered 2 | . . . . . 1 . . . . . . . . . . . . . 1 . . . . . . . . . . . . . . . . . . . Disarmed 16 | . . . . . 1 . . . . . . . . 1 . . . . 1 . . . . . . 7 . . . . . . 6 . . . . . Reprogrammed 55 | . 2 . . . 4 . . . . . . 11 . . . . . 1 4 . 8 . . . . 4 . 11 . . . . . 10 . . . . Reused 14 | . . . . . . . . . . . . 1 . . . . . . . . 6 . . . . 1 . 1 . 1 . . . 4 . . . . Traps Extracted 6 | . . . . . 4 . . . . . . 2 . . . . . . . . . . . . . . . . . . . . . . . . . . Installed 10 | . . . . . . . . . . . . . . . . . . . . . . . 5 . . . . . . 5 . . . . . . . . Triggered 36 | . . . . . 2 . . . . . . 1 . . . . . . . . 6 . 2 15 2 1 . 1 . 2 . . . 4 . . . . Most Traps Carried 4 | . . . . . 4 4 4 4 4 4 4 4 2 2 . . . . . . . . . . . . . . . . . . . . . . . . Machines | -11 -10 -9 -9 -8 -7 -7 -7 -7 -7 -7 -6 -6 -6 -6 -6 -6 -6 -6 -5 -5 -5 -5 -5 -5 -4 -4 -4 -4 -4 -4 -4 -3 -3 -3 -3 -2 -1 -1 ---------- Run | Jun Mat Mat Min Mat Fac Was Fac Low Low Zio Pro Fac Was Fac Ext Cet Arc Hub Fac Was Fac Upp Upp War Pro Fac Was Fac Upp Upp Zhi Pro Res Qua Sec Res Acc Com Machines Disabled 55 | . . . . 1 1 . 2 . . 3 . 12 . . 5 6 3 2 . . . . . 1 . . . 1 . . . . . 8 6 . 2 2 Max in Single Turn 6 | . . . . 1 1 . 1 . . 1 . 6 . . 1 3 2 1 . . . . . 1 . . . 1 . . . . . 1 1 . 1 1 Garrison Access 23 | . . . . 1 3 . 3 . . . . 3 . 3 . . . . 1 . 3 . . . . 3 . 2 . . . . . 1 . . . . Network Hub 2 | . . . . . . . . . . . . . . . . . . 2 . . . . . . . . . . . . . . . . . . . . Machines Repaired . | . . . . . . . . . . . . . . . . . . . . . . . . . . . . . . . . . . . . . . . Machines Sabotaged . | . . . . . . . . . . . . . . . . . . . . . . . . . . . . . . . . . . . . . . . Overloaded Fab Kills . | . . . . . . . . . . . . . . . . . . . . . . . . . . . . . . . . . . . . . . . Hacking | -11 -10 -9 -9 -8 -7 -7 -7 -7 -7 -7 -6 -6 -6 -6 -6 -6 -6 -6 -5 -5 -5 -5 -5 -5 -4 -4 -4 -4 -4 -4 -4 -3 -3 -3 -3 -2 -1 -1 --------- Run | Jun Mat Mat Min Mat Fac Was Fac Low Low Zio Pro Fac Was Fac Ext Cet Arc Hub Fac Was Fac Upp Upp War Pro Fac Was Fac Upp Upp Zhi Pro Res Qua Sec Res Acc Com Machines Accessed 328 | . 5 6 1 10 25 . 30 2 2 . . 31 . 27 12 2 . 6 15 . 29 . . 5 . 24 . 24 1 . 7 . 16 16 13 . 10 9 Terminals 184 | . 5 6 . 6 10 . 13 1 1 . . 17 . 12 11 2 . 6 7 . 15 . . . . 13 . 11 . . . . 10 12 11 . 7 8 Fabricators 44 | . . . . . 6 . 5 . . . . 6 . 6 . . . . 3 . 6 . . . . 4 . 6 . . . . 1 . . . 1 . Repair Stations 26 | . . . . 1 3 . 5 . . . . 1 . 5 . . . . 1 . 3 . . . . . . 1 . . . . 2 1 1 . 1 1 Recycling Units 16 | . . . . . 1 . 2 . . . . 1 . 1 1 . . . 2 . 2 . . . . 1 . 3 . . . . 1 . . . 1 . Scanalyzers 19 | . . . . 2 2 . 2 . . . . 3 . . . . . . 1 . . . . . . 3 . 1 . . . . 2 2 1 . . . Garrison Access 23 | . . . . 1 3 . 3 . . . . 3 . 3 . . . . 1 . 3 . . . . 3 . 2 . . . . . 1 . . . . Total Hacks 1133 | . 14 14 1 26 76 . 78 2 2 . . 89 . 80 25 7 . 19 76 . 131 . . 11 . 112 . 93 1 . 46 . 73 50 41 . 32 34 Successful 891 | . 7 4 1 12 60 . 54 2 2 . . 64 . 73 17 4 . 13 55 . 119 . . 11 . 94 . 85 1 . 46 . 67 34 32 . 21 13 Failed 240 | . 7 10 . 14 16 . 24 . . . . 25 . 7 8 3 . 6 20 . 12 . . . . 18 . 7 . . . . 6 16 9 . 11 21 Catastrophic 38 | . . 5 . 3 . . 3 . . . . 4 . 2 2 . . . 2 . 1 . . . . 3 . . . . . . 2 2 1 . 2 6 Database Lockouts 2 | . . . . . . . . . . . . . . . . . . . 1 . . . . . . . . 1 . . . . . . . . . . Manual 558 | . 8 13 . 15 30 . 26 . . . . 34 . 32 9 1 . 15 45 . 74 . . . . 69 . 57 . . . . 41 28 26 . 17 18 Terminals 680 | . 14 14 . 15 36 . 28 1 1 . . 46 . 32 23 7 . 19 52 . 83 . . . . 72 . 56 . . . . 50 44 36 . 20 31 Fabricators 188 | . . . . . 20 . 22 . . . . 25 . 28 . . . . 10 . 32 . . . . 21 . 20 . . . . 6 . . . 4 . Repair Stations 85 | . . . . 2 6 . 15 . . . . 5 . 14 . . . . 2 . 8 . . . . . . 6 . . . . 12 2 4 . 6 3 Recycling Units 29 | . . . . . 1 . 3 . . . . 1 . 2 2 . . . 4 . 5 . . . . 1 . 6 . . . . 2 . . . 2 . Scanalyzers 60 | . . . . 7 9 . 6 . . . . 8 . . . . . . 7 . . . . . . 15 . 1 . . . . 3 3 1 . . . Garrison Access 30 | . . . . 2 4 . 4 . . . . 4 . 4 . . . . 1 . 3 . . . . 3 . 4 . . . . . 1 . . . . Terminal Hacks 432 | . 5 2 1 4 16 . 10 2 2 . . 23 . 22 12 4 . 11 23 . 59 . . 11 . 43 . 40 1 . 46 . 32 24 19 . 9 11 Record 57 | . . . . . . . . 1 1 . . 1 . . . 4 . . . . 2 . . 9 . . . . . . 34 . . 3 1 . . 1 Part Schematic 28 | . . 1 . 2 3 . 2 . . . . 1 . 2 . . . . 1 . 3 . . . . 5 . 1 . . 4 . 1 1 . . 1 . Robot Schematic 1 | . . . . . . . . . . . . . . . . . . . . . . . . . . . . 1 . . . . . . . . . . Robot Analysis 17 | . . . . . 2 . . . . . . . . 1 . . . 1 3 . 1 . . . . 1 . 2 . . 4 . . 1 . . . 1 Prototype ID Bank 22 | . . . . . 1 . 1 . . . . 1 . 1 . . . . 3 . 4 . . . . . . 3 . . 4 . 1 2 . . . 1 Open Door 24 | . . . 1 . . . . 1 1 . . 1 . 1 6 . . . . . . . . 2 . . . . 1 . . . 1 1 5 . 3 . Level Access Points 10 | . . . . . . . . . . . . . . 1 . . . 1 . . 1 . . . . 2 . 1 . . . . 1 1 2 . . . Branch Access Points 9 | . . . . . . . 1 . . . . 1 . 1 . . . 1 . . 1 . . . . 1 . 1 . . . . 1 . . . 1 . Emergency Access Points 27 | . . . . . . . . . . . . . . . . . . . 1 . 10 . . . . 5 . 3 . . . . 5 3 . . . . Machine Index 14 | . . . . . 1 . . . . . . 1 . 1 . . . 1 1 . 1 . . . . 1 . 1 . . . . 1 1 2 . 1 1 Terminal Index 5 | . . . . . 1 . 1 . . . . 1 . . . . . . . . . . . . . . . . . . . . . . 1 . 1 . Scanalyzer Index 1 | . . . . 1 . . . . . . . . . . . . . . . . . . . . . . . . . . . . . . . . . . Garrison Index 1 | . . . . . . . . . . . . . . . . . . . . . . . . . . 1 . . . . . . . . . . . . Alert Level 27 | . 1 . . . 1 . . . . . . 4 . 3 1 . . . 2 . 4 . . . . 3 . 3 . . . . 3 . . . . 2 Unreport Threat 18 | . . . . . 1 . . . . . . 2 . 3 1 . . . 1 . 2 . . . . 1 . 3 . . . . 1 . . . 1 2 Locate Traps 30 | . 1 . . . 2 . 1 . . . . 1 . . 1 . . . 1 . 6 . . . . 6 . 4 . . . . 5 2 . . . . Disarm Traps 2 | . . . . . . . . . . . . . . . . . . . . . . . . . . 1 . . . . . . 1 . . . . . Reprogram Traps 12 | . 1 . . . . . . . . . . 1 . . . . . 3 . . 4 . . . . . . 1 . . . . . 2 . . . . Dispatch Records 3 | . . . . . . . . . . . . . . . . . . . . . 1 . . . . 1 . 1 . . . . . . . . . . Maintenance Status 5 | . . . . . . . . . . . . 1 . 1 . . . 1 1 . 1 . . . . . . . . . . . . . . . . . Security Status 1 | . . . . . . . . . . . . . . . . . . . 1 . . . . . . . . . . . . . . . . . . . Surveillance Status 2 | . . . . . . . . . . . . . . . 1 . . . . . 1 . . . . . . . . . . . . . . . . . Patrol Status 1 | . . . . . . . . . . . . . . . . . . . 1 . . . . . . . . . . . . . . . . . . . Recall Investigation 2 | . . . . . . . . . . . . . . . . . . . . . . . . . . . . 2 . . . . . . . . . . Recall Extermination 6 | . . . . . . . . . . . . 1 . . . . . . . . . . . . . 1 . 1 . . . . 2 . . . 1 . Hauler Manifests 14 | . 1 1 . 1 . . 2 . . . . 2 . 1 . . . . 1 . 1 . . . . 1 . 1 . . . . 1 1 . . . . Registered Components 10 | . . . . . . . . . . . . 1 . 2 1 . . . 1 . 1 . . . . 1 . 1 . . . . 1 . 1 . . . Registered Prototypes 12 | . . . . . 1 . 1 . . . . . . 1 . . . . 1 . 2 . . . . 1 . 1 . . . . 1 1 2 . . . Zone Layout 69 | . 1 . . . 3 . 1 . . . . 3 . 3 1 . . 3 4 . 13 . . . . 11 . 9 . . . . 6 5 5 . . 1 Disengage Seal 2 | . . . . . . . . . . . . . . . . . . . . . . . . . . . . . . . . . . . . . . 2 Fabricator Hacks 117 | . . . . . 12 . 14 . . . . 16 . 18 . . . . 6 . 20 . . . . 12 . 13 . . . . 4 . . . 2 . Network Status 6 | . . . . . 1 . 1 . . . . 1 . 1 . . . . 1 . . . . . . . . . . . . . 1 . . . . . Load Schematic 75 | . . . . . 8 . 9 . . . . 10 . 11 . . . . 4 . 13 . . . . 8 . 9 . . . . 2 . . . 1 . Build 36 | . . . . . 3 . 4 . . . . 5 . 6 . . . . 1 . 7 . . . . 4 . 4 . . . . 1 . . . 1 . Repair Station Hacks 75 | . . . . 2 4 . 11 . . . . 4 . 14 . . . . 2 . 8 . . . . . . 6 . . . . 12 2 4 . 4 2 Scan Component 38 | . . . . 1 2 . 6 . . . . 2 . 7 . . . . 1 . 4 . . . . . . 3 . . . . 6 1 2 . 2 1 Repair 35 | . . . . 1 2 . 4 . . . . 2 . 7 . . . . 1 . 4 . . . . . . 3 . . . . 6 1 2 . 1 1 Refit 2 | . . . . . . . 1 . . . . . . . . . . . . . . . . . . . . . . . . . . . . . 1 . Recycling Unit Hacks 18 | . . . . . 1 . 2 . . . . 1 . 1 1 . . . 2 . 2 . . . . 1 . 5 . . . . 1 . . . 1 . Process 1 | . . . . . . . . . . . . . . . . . . . . . . . . . . . . 1 . . . . . . . . . . Report Inventory 2 | . . . . . . . . . . . . . . . . . . . . . 1 . . . . . . 1 . . . . . . . . . . Retrieve Matter 1 | . . . . . . . . . . . . . . . . . . . . . . . . . . . . 1 . . . . . . . . . . Retrieve Components 14 | . . . . . 1 . 2 . . . . 1 . 1 1 . . . 2 . 1 . . . . 1 . 2 . . . . 1 . . . 1 . Scanalyzer 51 | . . . . 2 9 . 5 . . . . 6 . . . . . . 7 . . . . . . 15 . . . . . . 3 3 1 . . . Insert Component 29 | . . . . 2 5 . 3 . . . . 3 . . . . . . 3 . . . . . . 7 . . . . . . 2 3 1 . . . Analyze 22 | . . . . . 4 . 2 . . . . 3 . . . . . . 4 . . . . . . 8 . . . . . . 1 . . . . . Garrison Access Hacks 23 | . . . . 1 3 . 3 . . . . 3 . 3 . . . . 1 . 3 . . . . 3 . 2 . . . . . 1 . . . . Seal Access 23 | . . . . 1 3 . 3 . . . . 3 . 3 . . . . 1 . 3 . . . . 3 . 2 . . . . . 1 . . . . Unauthorized Hacks 175 | . 2 2 . 3 15 . 9 . . . . 11 . 15 4 . . 2 14 . 27 . . . . 20 . 19 . . . . 15 4 8 . 5 . Terminals 105 | . 2 2 . 3 8 . 3 . . . . 5 . 5 3 . . 2 10 . 14 . . . . 12 . 9 . . . . 12 4 8 . 3 . Track 11 | . . . . . 1 . . . . . . . . . . . . . 2 . 2 . . . . 1 . 2 . . . . 2 . 1 . . . Assimilate 20 | . . . . . 3 . 2 . . . . 2 . 1 . . . . 3 . 2 . . . . 3 . . . . . . 2 1 . . 1 . Botnet 44 | . 1 1 . 1 3 . 1 . . . . 3 . 3 2 . . 1 2 . 5 . . . . 6 . 3 . . . . 5 1 4 . 2 . Disrupt 12 | . . . . . . . . . . . . . . . 1 . . 1 1 . 3 . . . . . . 2 . . . . 1 1 2 . . . Operators 18 | . 1 1 . 2 1 . . . . . . . . 1 . . . . 2 . 2 . . . . 2 . 2 . . . . 2 1 1 . . . Fabricators 60 | . . . . . 7 . 6 . . . . 6 . 9 . . . . 4 . 10 . . . . 8 . 7 . . . . 2 . . . 1 . Prioritize 25 | . . . . . 3 . 2 . . . . 2 . 4 . . . . 1 . 4 . . . . 4 . 3 . . . . 1 . . . 1 . Recompile 35 | . . . . . 4 . 4 . . . . 4 . 5 . . . . 3 . 6 . . . . 4 . 4 . . . . 1 . . . . . Repair Stations . | . . . . . . . . . . . . . . . . . . . . . . . . . . . . . . . . . . . . . . . Recycling Units 7 | . . . . . . . . . . . . . . 1 1 . . . . . 3 . . . . . . . . . . . 1 . . . 1 . Reject 1 | . . . . . . . . . . . . . . . . . . . . . 1 . . . . . . . . . . . . . . . . . Recyclers 4 | . . . . . . . . . . . . . . 1 1 . . . . . 1 . . . . . . . . . . . 1 . . . . . Mask 2 | . . . . . . . . . . . . . . . . . . . . . 1 . . . . . . . . . . . . . . . 1 . Scanalyzers 1 | . . . . . . . . . . . . . . . . . . . . . . . . . . . . 1 . . . . . . . . . . Researchers 1 | . . . . . . . . . . . . . . . . . . . . . . . . . . . . 1 . . . . . . . . . . Garrison Access 2 | . . . . . . . . . . . . . . . . . . . . . . . . . . . . 2 . . . . . . . . . . Watchers 2 | . . . . . . . . . . . . . . . . . . . . . . . . . . . . 2 . . . . . . . . . . Data Cores Recovered 2 | . . . . . . . 1 . . . . . . . . . . . . . . . . . . . . 1 . . . . . . . . . . Used . | . . . . . . . . . . . . . . . . . . . . . . . . . . . . . . . . . . . . . . . Hacking Detections 202 | . 5 6 . 9 16 . 21 . . . . 25 . 18 4 2 . 4 11 . 17 . . . . 16 . 10 . . . . 11 8 5 . 6 8 Full Trace Events 15 | . 1 1 . 1 1 . 3 . . . . 2 . 2 . 2 . . . . . . . . . 1 . 1 . . . . . . . . . . Feedback Events 3 | . . . . . . . 2 . . . . . . 1 . . . . . . . . . . . . . . . . . . . . . . . . Corruption 2 | . . . . . . . 1 . . . . . . 1 . . . . . . . . . . . . . . . . . . . . . . . . Hackware Fried 1 | . . . . . . . 1 . . . . . . . . . . . . . . . . . . . . . . . . . . . . . . . Feedback Blocked 3 | . . . . . . . . . . . . 2 . . . . . . . . . . . . . 1 . . . . . . . . . . . . Robot Schematics Acquired 5 | . . . . . . . . . . 4 . . . . . . . . . . . . . . . . . 1 . . . . . . . . . . Robots Built . | . . . . . . . . . . . . . . . . . . . . . . . . . . . . . . . . . . . . . . . Authchips . | . . . . . . . . . . . . . . . . . . . . . . . . . . . . . . . . . . . . . . . Time . | . . . . . . . . . . . . . . . . . . . . . . . . . . . . . . . . . . . . . . . Total Robot Build Rating . | . . . . . . . . . . . . . . . . . . . . . . . . . . . . . . . . . . . . . . . Part Schematics Acquired 62 | . . 1 . 2 7 . 4 . . 15 . 3 . 2 . . . . 4 . 3 . . . . 12 . 1 . . 4 . 2 1 . . 1 . Parts Built 40 | . . . . . 4 . 6 . . . . 5 . 7 . . . . 1 . 7 . . . . 4 . 4 . . . . 1 . . . 1 . Authchips 35 | . . . . . 3 . 4 . . . . 5 . 6 . . . . 1 . 7 . . . . 4 . 3 . . . . 1 . . . 1 . Time 3584 | . . . . . 296 . 385 . . . . 291 . 508 . . . . 106 . 510 . . . . 552 . 640 . . . . 222 . . . 74 . Total Part Build Rating 246 | . . . . . 20 . 32 . . . . 25 . 37 . . . . 6 . 49 . . . . 30 . 29 . . . . 9 . . . 9 . Parts Repaired 34 | . . . . 1 2 . 4 . . . . 2 . 7 . . . . 1 . 4 . . . . . . 3 . . . . 6 . 2 . 1 1 Time 1610 | . . . . 136 128 . 206 . . . . 69 . 327 . . . . 25 . 145 . . . . . . 148 . . . . 225 70 62 . 33 36 Parts Recycled . | . . . . . . . . . . . . . . . . . . . . . . . . . . . . . . . . . . . . . . . Recycled Matter 78 | . . . . . . . . . . . . . . . . . . . . . . . . . . . . 78 . . . . . . . . . . Retrieved Matter 78 | . . . . . . . . . . . . . . . . . . . . . . . . . . . . 78 . . . . . . . . . . Retrieved Components 38 | . . . . . 9 . 2 . . . . 2 . 9 . . . . 4 . . . . . . 2 . 7 . . . . 2 . . . 1 . Parts Scanalyzed 19 | . . . . 1 3 . 2 . . . . 2 . . . . . . 3 . . . . . . 7 . . . . . . 1 . . . . . Part Schematics Acquired 19 | . . . . . 4 . 2 . . . . 2 . . . . . . 3 . . . . . . 7 . . . . . . 1 . . . . . Parts Damaged 2 | . . . . . . . . . . . . 1 . . . . . . . . . . . . . 1 . . . . . . . . . . . . Bothacking | -11 -10 -9 -9 -8 -7 -7 -7 -7 -7 -7 -6 -6 -6 -6 -6 -6 -6 -6 -5 -5 -5 -5 -5 -5 -4 -4 -4 -4 -4 -4 -4 -3 -3 -3 -3 -2 -1 -1 ------------ Run | Jun Mat Mat Min Mat Fac Was Fac Low Low Zio Pro Fac Was Fac Ext Cet Arc Hub Fac Was Fac Upp Upp War Pro Fac Was Fac Upp Upp Zhi Pro Res Qua Sec Res Acc Com Used RIF Installer . | . . . . . . . . . . . . . . . . . . . . . . . . . . . . . . . . . . . . . . . Robots Hacked 19 | . . . . . 3 . . . . . . 2 . 2 . . . . 1 . 2 . . . . 1 . 1 3 . 3 . 1 . . . . . Non-combat 13 | . . . . . 3 . . . . . . 2 . 2 . . . . 1 . 2 . . . . 1 . 1 . . . . 1 . . . . . Combat 6 | . . . . . . . . . . . . . . . . . . . . . . . . . . . . . 3 . 3 . . . . . . . Robot Hacks Applied 22 | . . . . . 3 . . . . . . 2 . 4 . . . . 1 . 2 . . . . 1 . 1 3 . 4 . 1 . . . . . parse_system 8 | . . . . . 1 . . . . . . . . . . . . . . . . . . . . . . . 3 . 4 . . . . . . . no_distress 6 | . . . . . . . . . . . . . . 2 . . . . . . 2 . . . . . . 1 . . . . 1 . . . . . find_chute 5 | . . . . . 1 . . . . . . 2 . . . . . . 1 . . . . . . 1 . . . . . . . . . . . . find_fabricator 2 | . . . . . 1 . . . . . . . . 1 . . . . . . . . . . . . . . . . . . . . . . . . find_dsf 1 | . . . . . . . . . . . . . . 1 . . . . . . . . . . . . . . . . . . . . . . . . Relay Couplers Released . | . . . . . . . . . . . . . . . . . . . . . . . . . . . . . . . . . . . . . . . Fabnet Peak Effective % . | . . . . . . . . . . . . . . . . . . . . . . . . . . . . . . . . . . . . . . . Robots Rewired 16 | . . . . . . . . . . . . . . . 11 . . . . . . . . 5 . . . . . . . . . . . . . . Allies Hacked 1 | . . . . . . . . . . . . . . . . 1 . . . . . . . . . . . . . . . . . . . . . . Hacks Repelled . | . . . . . . . . . . . . . . . . . . . . . . . . . . . . . . . . . . . . . . . Allies | -11 -10 -9 -9 -8 -7 -7 -7 -7 -7 -7 -6 -6 -6 -6 -6 -6 -6 -6 -5 -5 -5 -5 -5 -5 -4 -4 -4 -4 -4 -4 -4 -3 -3 -3 -3 -2 -1 -1 -------- Run | Jun Mat Mat Min Mat Fac Was Fac Low Low Zio Pro Fac Was Fac Ext Cet Arc Hub Fac Was Fac Upp Upp War Pro Fac Was Fac Upp Upp Zhi Pro Res Qua Sec Res Acc Com Total Allies 66 | . . . . . 3 . 2 . . . . 2 19 1 18 1 . . 3 . 1 . . 5 . 2 . . . . . . 1 . . . 1 7 Largest Group 19 | . . . . . 3 . 1 . . . . 1 19 1 13 12 7 . 2 . 1 . . 5 5 1 . . . . . . 1 . . . 1 6 Highest-Rated Group 684 | . . . . . 46 . 26 . . . . 26 684 10 494 474 412 . 36 . 10 . . 247 247 26 . . . . . . 10 . . . 45 84 Highest-Rated Ally 159 | . . . . . 26 . 26 . . . . 26 50 10 159 159 159 . 26 . 10 . . 68 68 26 . . . . . . 10 . . . 45 15 Total Orders 8 | . . . . . . . 1 . . . . 2 . . . . . . . . . . . 3 . 2 . . . . . . . . . . . . STAY 5 | . . . . . . . 1 . . . . 1 . . . . . . . . . . . 2 . 1 . . . . . . . . . . . . FOLLOW 3 | . . . . . . . . . . . . 1 . . . . . . . . . . . 1 . 1 . . . . . . . . . . . . Ally Attacks 306 | . . . . . . . . . . . . . 75 . 117 85 19 . . . . . . . 3 . . . . . . . . . . . . 7 Total Damage 8838 | . . . . . . . . . . . . . 3518 . 2700 1666 659 . . . . . . . 127 . . . . . . . . . . . . 168 Kills 52 | . . . . . . . . . . . . . 9 . 23 14 5 . . . . . . . 1 . . . . . . . . . . . . . Allies Corrupted . | . . . . . . . . . . . . . . . . . . . . . . . . . . . . . . . . . . . . . . . Allies Melted 1 | . . . . . . . . . . . . . . . . . . . . . . . . 1 . . . . . . . . . . . . . . Intel | -11 -10 -9 -9 -8 -7 -7 -7 -7 -7 -7 -6 -6 -6 -6 -6 -6 -6 -6 -5 -5 -5 -5 -5 -5 -4 -4 -4 -4 -4 -4 -4 -3 -3 -3 -3 -2 -1 -1 ------- Run | Jun Mat Mat Min Mat Fac Was Fac Low Low Zio Pro Fac Was Fac Ext Cet Arc Hub Fac Was Fac Upp Upp War Pro Fac Was Fac Upp Upp Zhi Pro Res Qua Sec Res Acc Com Robot Analysis Total 17 | . . . . . 2 . . . . . . . . 1 . . . 1 3 . 1 . . . . 1 . 2 . . 4 . . 1 . . . 1 Derelict Logs Recovered 13 | . . . 2 . . . . . 1 1 1 . . . . . . . . . . 1 1 . 1 . . . 2 3 . . . . . . . . Drone Launches . | . . . . . . . . . . . . . . . . . . . . . . . . . . . . . . . . . . . . . . . Drone Recoveries . | . . . . . . . . . . . . . . . . . . . . . . . . . . . . . . . . . . . . . . . Exploration | -11 -10 -9 -9 -8 -7 -7 -7 -7 -7 -7 -6 -6 -6 -6 -6 -6 -6 -6 -5 -5 -5 -5 -5 -5 -4 -4 -4 -4 -4 -4 -4 -3 -3 -3 -3 -2 -1 -1 ------------- Run | Jun Mat Mat Min Mat Fac Was Fac Low Low Zio Pro Fac Was Fac Ext Cet Arc Hub Fac Was Fac Upp Upp War Pro Fac Was Fac Upp Upp Zhi Pro Res Qua Sec Res Acc Com Turns Passed 29295 | 78 1694 1978 989 2961 1635 101 1842 319 154 419 294 2114 80 1391 679 189 80 119 579 54 1494 50 156 1203 102 1607 53 1846 87 259 67 218 1083 781 597 680 581 682 Spaces Moved 50559 | 43 818 641 366 965 3820 203 4180 817 431 1181 554 4678 185 3054 1050 345 166 263 1462 234 3257 175 506 1934 326 3438 142 3574 305 814 182 509 2168 1572 1313 1777 1486 1625 Core 2 | 2 . . . . . . . . . . . . . . . . . . . . . . . . . . . . . . . . . . . . . . Treads 2831 | 41 818 641 366 965 . . . . . . . . . . . . . . . . . . . . . . . . . . . . . . . . . . Legs . | . . . . . . . . . . . . . . . . . . . . . . . . . . . . . . . . . . . . . . . Wheels . | . . . . . . . . . . . . . . . . . . . . . . . . . . . . . . . . . . . . . . . Hover . | . . . . . . . . . . . . . . . . . . . . . . . . . . . . . . . . . . . . . . . Flight 47658 | . . . . . 3820 203 4180 817 431 1181 554 4678 185 3054 1050 345 166 263 1462 234 3257 175 506 1934 326 3438 142 3574 305 814 182 509 2168 1572 1278 1771 1483 1601 Fastest Speed 5 | 50 160 240 250 247 28 28 25 28 28 27 28 5 23 23 23 23 23 5 23 23 23 27 27 26 14 14 26 26 26 26 26 26 13 11 20 18 23 28 Average Speed 36 | 154 171 244 250 248 28 28 27 28 28 27 28 23 23 23 24 24 23 20 23 23 24 27 27 26 25 26 26 26 26 26 26 26 21 20 20 21 24 30 Slowest Speed 320 | 160 240 320 250 250 28 28 28 105 28 106 28 91 23 26 29 26 23 23 23 23 92 27 27 27 26 94 26 26 26 26 26 26 87 21 21 91 95 35 Overloaded Moves 126 | . . . . . . . 2 . . . . 20 . . . . . 34 . . . . . . 8 1 . . . . . . 7 49 . . . 5 Propulsion Burnouts . | . . . . . . . . . . . . . . . . . . . . . . . . . . . . . . . . . . . . . . . Robots Hopped 414 | . . . . . 22 . 43 . 1 . . 19 . 18 9 . 6 4 14 2 32 1 1 9 1 40 . 52 1 6 . . 29 22 8 23 20 31 Cave-ins Triggered 6 | . . . . . 1 . . 1 . . . . . . . . . . . . . . . . . . . . . . . . . . 2 . 2 . Teleports 4 | . . . . . . . . . . . . . . . . . . . . . . . . . . . . . . . . . . 2 2 . . . Spacefolds 25 | . . . . . . . . . . . . . . . . . . . . . . . . . . . . . . . . . . . 13 3 1 8 Exploration Rate (%) 64 | 4 88 50 83 55 72 99 70 75 62 84 55 72 79 66 92 85 98 37 27 95 57 44 61 97 53 54 80 56 58 77 62 66 41 92 66 32 34 49 Regions Visited 38 Branch Regions 20 Pre-discovered Areas 4 | . . . 1 . . . . . . . . . . . . . . . . . . . . . . . . . . . 3 . . . . . . . Known Exits Taken 25 | . . . . . . . 1 1 1 1 1 . . 1 1 1 1 1 . . 1 1 1 1 1 . . 1 1 1 1 1 1 1 1 1 1 . Unknown Exits Taken 5 | 1 1 1 1 1 . . . . . . . . . . . . . . . . . . . . . . . . . . . . . . . . . . Scrap Searched 21 | . . . 1 . . . . 3 2 2 1 . . . . . . . . . . . 4 . 3 . . . 3 1 . 1 . . . . . . Spaces Dug 783 | . 2 . . 15 39 . 50 31 3 . 9 72 . 49 . . . 7 17 . 67 . . 40 1 44 . 62 1 1 . 8 99 33 29 9 20 75 Terrain Destroyed 1917 | . 2 . . 35 39 . 63 72 3 . 9 137 . 50 101 163 31 389 17 . 67 . . 245 1 44 . 63 1 1 . 8 99 36 29 9 20 183 Melee 555 | . 2 . . 15 39 . 50 6 3 . 9 72 . 37 . . . . 11 . 31 . . 40 1 32 . 41 1 1 . 2 66 31 26 9 20 10 Projectile 144 | . . . . . . . . . . . . . . 13 . . . 7 6 . 36 . . . . 12 . 21 . . . 6 33 5 3 . . 2 AOE 1218 | . . . . 20 . . 13 66 . . . 65 . . 101 163 31 382 . . . . . 205 . . . 1 . . . . . . . . . 171 Terrain Rammed . | . . . . . . . . . . . . . . . . . . . . . . . . . . . . . . . . . . . . . . . Walls Destroyed . | . . . . . . . . . . . . . . . . . . . . . . . . . . . . . . . . . . . . . . . Machines Disabled . | . . . . . . . . . . . . . . . . . . . . . . . . . . . . . . . . . . . . . . . Actions | -11 -10 -9 -9 -8 -7 -7 -7 -7 -7 -7 -6 -6 -6 -6 -6 -6 -6 -6 -5 -5 -5 -5 -5 -5 -4 -4 -4 -4 -4 -4 -4 -3 -3 -3 -3 -2 -1 -1 --------- Run | Jun Mat Mat Min Mat Fac Was Fac Low Low Zio Pro Fac Was Fac Ext Cet Arc Hub Fac Was Fac Upp Upp War Pro Fac Was Fac Upp Upp Zhi Pro Res Qua Sec Res Acc Com Total 58478 | 52 986 873 418 1343 4249 246 4654 876 454 1252 662 5458 224 3610 1391 425 194 309 1645 231 3775 176 517 2469 339 3987 157 4259 308 846 194 580 2565 1911 1522 2002 1606 1713 Wait 5224 | . 31 50 26 177 247 44 313 34 12 43 90 527 28 337 270 50 23 25 119 . 335 3 . 409 13 431 16 556 . 26 . 56 268 253 169 159 29 55 Move 49690 | 42 817 640 365 964 3776 202 4096 815 428 1180 553 4640 184 3018 1032 344 153 254 1434 230 3194 172 503 1919 323 3366 141 3470 302 801 181 508 2112 1528 1276 1733 1442 1552 Hop 374 | . . . . . 22 . 40 . 1 . . 19 . 17 8 . 6 4 14 1 30 1 1 5 1 32 . 51 1 6 . . 26 21 5 17 20 25 Pick Up 273 | 4 26 17 3 19 25 . 19 1 3 1 . 21 . 18 5 2 1 1 9 . 19 . . 5 . 15 . 10 . . 1 . 12 9 6 10 6 5 Fast Attach 276 | 6 5 15 2 12 18 . 9 1 3 7 2 20 2 19 1 . . 1 8 . 12 . 2 13 . 7 . 17 . 2 2 3 8 8 8 21 30 12 Attach 191 | . 2 5 1 3 10 . 14 3 . 2 . 16 3 21 7 5 2 7 5 . 21 . 1 2 . 7 . 8 . . . . 8 4 10 6 6 12 Detach 137 | . 2 3 3 1 9 . 7 1 1 6 1 8 5 18 2 3 2 4 4 . 14 . . 3 . 4 . 6 . 1 . . 3 3 2 10 5 6 Swap 220 | . 12 10 1 14 18 . 9 . . 3 . 14 . 10 2 1 . . 8 . 36 . . 2 1 19 . 20 . . . 2 11 10 5 4 2 6 Drop 315 | . 19 19 3 28 23 . 13 2 2 2 1 24 2 22 5 . 1 . 9 . 19 . 2 14 . 11 . 13 . 1 2 2 8 14 2 20 26 6 Fire 556 | . 63 109 13 96 . . 9 6 . . . 3 . 16 21 18 5 13 6 . 36 . . 43 . 12 . 25 . . . 6 38 7 3 . . 8 Melee 955 | . 4 . . 23 75 . 92 12 4 8 15 113 . 57 34 1 1 . 20 . 59 . 3 53 1 54 . 73 5 4 8 3 71 43 35 22 39 23 Ram . | . . . . . . . . . . . . . . . . . . . . . . . . . . . . . . . . . . . . . . . Kick . | . . . . . . . . . . . . . . . . . . . . . . . . . . . . . . . . . . . . . . . Crush 17 | . 5 5 1 6 . . . . . . . . . . . . . . . . . . . . . . . . . . . . . . . . . . Escape Stasis 160 | . . . . . . . 33 1 . . . 44 . 54 . . . . . . . . . . . 12 . . . . . . . 11 1 . 1 3 Rewire 6 | . . . . . . . . . . . . . . . 4 1 . . . . . . . 1 . . . . . . . . . . . . . . Trap 84 | . . . . . 26 . . . . . . 9 . 3 . . . . 9 . . . 5 . . 17 . 10 . 5 . . . . . . . . Miscellaneous . | . . . . . . . . . . . . . . . . . . . . . . . . . . . . . . . . . . . . . . . Route ------- -11/Junkyard -10/Materials (discovered 4 exits: *Mat x3 / [*Min]) -9/Materials (discovered 2 exits: *Mat / *Min) -9/Mines (discovered 2 exits: *Mat / *Zio) -8/Materials -7/Factory -7/Waste -7/Factory (discovered 5 exits: *Fac x3 / *Low x2) -7/Lower Caves -7/Lower Caves -7/Zion (discovered 2 exits: *Dee / *Pro) -6/Proximity Caves -6/Factory (discovered 8 exits: *Fac x4 / *Low x2 / *Ext x2) -6/Waste -6/Factory (discovered 8 exits: *Fac x4 / Low x2 / *Ext x2) -6/Extension (discovered 2 exits: *Fac / *Cet) -6/Cetus (discovered 2 exits: *Fac / *Arc) -6/Archives (discovered 3 exits: *Fac / *Hub x2) -6/Hub_04(d) (discovered 4 exits: *Fac x4) -5/Factory (discovered 2 exits: *Upp x2) -5/Waste -5/Factory (discovered 6 exits: *Fac x4 / *Upp x2) -5/Upper Caves -5/Upper Caves -5/Warlord -4/Proximity Caves -4/Factory (discovered 7 exits: *Res x4 / *Upp x2 / Arm) -4/Waste -4/Factory (discovered 7 exits: *Res x4 / *Upp x2 / Arm) -4/Upper Caves -4/Upper Caves (discovered 2 exits: *Res / *Zhi) -4/Zhirov -3/Proximity Caves -3/Research (discovered 5 exits: Res x3 / *Qua x2) -3/Quarantine (discovered 2 exits: *Res / *Sec) -3/Section 7 -2/Research (discovered 2 exits: *Acc x2) -1/Access -1/Command To Fleet Rendezvous History --------- Turn | Location | Event 6 | -11/Junkyard | Discovered new exit (range 15) 79 | -11/Junkyard | Entered Materials 94 | -10/Materials | Discovered new exit (range 16) 314 | -10/Materials | Build established: Mutant 504 | -10/Materials | Discovered new exit (range 5) 784 | -10/Materials | Core integrity fell below 50% 807 | -10/Materials | Discovered new exit (range 13) 903 | -10/Materials | Discovered new exit (range 10) 1773 | -10/Materials | Entered another Materials area 1773 | -9/Materials | Evolved 2 slots: Propulsion x1, Utility x1 3184 | -9/Materials | Discovered new exit (range 15) 3445 | -9/Materials | Discovered new exit (range 4) 3751 | -9/Materials | Entered Mines 3752 | -9/Mines | Learned location of Storage (-9) 3762 | -9/Mines | Met a Derelict bent on vengeance 3952 | -9/Mines | Found a damaged Exp. Sensor Array with a note attached 3958 | -9/Mines | Found Prototype Device 4020 | -9/Mines | Met a Derelict shopkeep closing up shop 4260 | -9/Mines | A Derelict revealed a hidden shortcut to a safe place 4515 | -9/Mines | Learned Materials security intel 4608 | -9/Mines | Discovered new exit (range 10) 4618 | -9/Mines | Learned 8 Materials zone layouts 4740 | -9/Mines | Entered Materials 4740 | -8/Materials | Evolved 2 slots: Propulsion x1, Utility x1 6109 | -8/Materials | Identified Exp. Sensor Array 6599 | -8/Materials | Repaired Broken Exp. Sensor Array 7664 | -8/Materials | Discovered new exit (range 14) 7701 | -8/Materials | Entered Factory 7701 | -7/Factory | Evolved 2 slots: Utility x2 8022 | -7/Factory | Build established: Hacker-Sprinter 8130 | -7/Factory | Repaired Broken Exp. Sensor Array? 8435 | -7/Factory | Fabricated Imp. Trap Extractor (x2) 8507 | -7/Factory | Fabricated Adv. Hacking Suite? 8831 | -7/Factory | Crushed by falling debris 8993 | -7/Factory | Repaired Imp. VTOL Module? 9035 | -7/Factory | Cargo convoy interrupted 9047 | -7/Factory | Discovered new exit (range 14) 9300 | -7/Factory | Fabricated Adv. Hacking Suite (x1) 9301 | -7/Factory | Search patrols dispatched 9336 | -7/Factory | Sucked down chute 9336 | -7/Factory | Entered Waste 9341 | -7/Waste | Spotted C-40 Crusher 9341 | -7/Waste | Spotted C-40 Crusher 9351 | -7/Waste | EMP discharged 9351 | -7/Waste | System corruption reached 10% 9386 | -7/Waste | Spotted C-40 Crusher 9388 | -7/Waste | Spotted C-40 Crusher 9391 | -7/Waste | Spotted C-40 Crusher 9392 | -7/Waste | Spotted C-40 Crusher 9432 | -7/Waste | Discovered new exit (range 13) 9436 | -7/Waste | Identified exit to Factory 9437 | -7/Waste | Entered Factory 9516 | -7/Factory | Repaired Spear? 9544 | -7/Factory | Repaired Imp. VTOL Module? 9666 | -7/Factory | Discovered new exit (range 16) 9685 | -7/Factory | Identified exit to Factory 9700 | -7/Factory | Fabricated Exp. Sensor Array (x1) 9874 | -7/Factory | Fabricated Adv. Hacking Suite? 9886 | -7/Factory | Discovered exit to Factory (range 16) 9999 | -7/Factory | Identified exit to Lower Caves 10223 | -7/Factory | Repaired Exp. Sensor Array 10315 | -7/Factory | Fabricated Adv. Signal Interpreter? 10432 | -7/Factory | Discovered exit to Factory (range 5) 10502 | -7/Factory | Adv. Hacking Suite fried by hacking feedback 10642 | -7/Factory | Core integrity fell below 50% 10685 | -7/Factory | Search patrols dispatched 10875 | -7/Factory | Repaired Cld. VTOL Module? 11006 | -7/Factory | Fabricated Greatsword (x2) 11037 | -7/Factory | Search patrols dispatched 11279 | -7/Factory | Entered Lower Caves 11280 | -7/Lower Caves | Encountered a Warlord checkpoint 11470 | -7/Lower Caves | Spotted B-75 Beast 11591 | -7/Lower Caves | Discovered new exit (range 15) 11591 | -7/Lower Caves | Crushed by falling debris 11597 | -7/Lower Caves | Identified exit to Lower Caves 11598 | -7/Lower Caves | Entered another Lower Caves area 11616 | -7/Lower Caves | Found Prototype Device 11616 | -7/Lower Caves | Identified Heart of Steel 11622 | -7/Lower Caves | Lost 3 parts (1n2u) 11632 | -7/Lower Caves | Encountered a Warlord checkpoint 11716 | -7/Lower Caves | Learned location of 1 exit from Factory 11751 | -7/Lower Caves | Discovered new exit (range 3) 11752 | -7/Lower Caves | Identified exit to Zion 11752 | -7/Lower Caves | Entered Zion 11765 | -7/Zion | Given A8's code to call for help 11772 | -7/Zion | Discovered new exit (range 11) 11778 | -7/Zion | Found Prototype Processor 11778 | -7/Zion | Identified Exp. Target Analyzer 11781 | -7/Zion | Found Prototype Processor 11781 | -7/Zion | Identified Exp. Armor Integrity Analyzer 11784 | -7/Zion | Found Prototype Processor 11784 | -7/Zion | Identified Exp. Melee Analysis Suite 11787 | -7/Zion | Found Prototype Processor 11787 | -7/Zion | Identified Spectral Analyzer 11800 | -7/Zion | System corruption cleaned by Quarantine Array 11881 | -7/Zion | Learned Factory emergency access door positions 11981 | -7/Zion | Given the Hacking Drone Bay 11987 | -7/Zion | Found Prototype Device 11987 | -7/Zion | Identified Phasing AFG 11995 | -7/Zion | Visited the Megawrench Repair Shop 11999 | -7/Zion | Megawrench repaired 8 parts 12010 | -7/Zion | Learned 8 Factory zone layouts 12113 | -7/Zion | Discovered new exit (range 4) 12113 | -7/Zion | Saw the warning signs outside the Deep Caves entrance 12114 | -7/Zion | Identified exit to Deep Caves 12159 | -7/Zion | Identified exit to Proximity Caves 12171 | -7/Zion | Entered Proximity Caves 12174 | -6/Proximity Caves | Spotter reported a threat 12176 | -6/Proximity Caves | Spotter reported a threat 12230 | -6/Proximity Caves | Learned Factory emergency access door positions 12234 | -6/Proximity Caves | Spotted B-75 Beast 12245 | -6/Proximity Caves | Spotter reported a threat 12463 | -6/Proximity Caves | Discovered exit to Factory (range 8) 12465 | -6/Proximity Caves | Entered Factory 12465 | -6/Factory | Evolved 2 slots: Propulsion x1, Utility x1 12466 | -6/Factory | Identified exit to Lower Caves 12467 | -6/Factory | Identified exit to Factory 12478 | -6/Factory | Discovered exit to Factory (range 12) 12531 | -6/Factory | Found Prototype Processor 12531 | -6/Factory | Identified Exp. Targeting Computer 12599 | -6/Factory | Found Prototype Launcher 12629 | -6/Factory | Discovered exit to Factory (range 13) 12773 | -6/Factory | Identified Rocket Array 12815 | -6/Factory | Search patrols dispatched 12816 | -6/Factory | Fabricated Cld. VTOL Module? 12821 | -6/Factory | Repaired Broken Cld. VTOL Module? 12923 | -6/Factory | Repaired Imp. Flight Unit 12995 | -6/Factory | Fabricated Cld. VTOL Module (x1) 13339 | -6/Factory | Fabricated Exp. Utility Shielding? 13451 | -6/Factory | Discovered new exit (range 6) 13809 | -6/Factory | Discovered exit to Factory (range 7) 13833 | -6/Factory | Fabricated Adv. Hacking Suite? 13891 | -6/Factory | Build established: Machinist-Sprinter 14118 | -6/Factory | Discovered new exit (range 16) 14260 | -6/Factory | Build established: Hacker-Sprinter 14339 | -6/Factory | Fabricated Adv. Hacking Suite? 14476 | -6/Factory | Identified exit to Extension 14565 | -6/Factory | Search patrols dispatched 14579 | -6/Factory | Sucked down chute 14579 | -6/Factory | Entered Waste 14581 | -6/Waste | Spotted C-40 Crusher 14585 | -6/Waste | Spotted C-40 Crusher 14597 | -6/Waste | Warlord forces began an assault 14609 | -6/Waste | Spotted C-40 Crusher 14614 | -6/Waste | Allies destroyed C-40 Crusher 14621 | -6/Waste | Allies destroyed C-40 Crusher 14623 | -6/Waste | Spotted C-40 Crusher 14632 | -6/Waste | Allies destroyed C-40 Crusher 14639 | -6/Waste | Spotted C-40 Crusher 14646 | -6/Waste | Allies destroyed C-40 Crusher 14655 | -6/Waste | Discovered new exit (range 15) 14659 | -6/Waste | Identified exit to Factory 14659 | -6/Waste | Entered Factory 14767 | -6/Factory | Repaired Imp. VTOL Module? 14843 | -6/Factory | Repaired Cld. VTOL Module 14874 | -6/Factory | Fabricated Adv. Hacking Suite (x1) 14919 | -6/Factory | Fabricated Greatsword? 15089 | -6/Factory | Discovered exit to Extension (range 10) 15156 | -6/Factory | Discovered exit to Factory (range 15) 15219 | -6/Factory | Repaired Cld. Cesium-ion Thruster? 15237 | -6/Factory | Discovered exit to Factory (range 7) 15393 | -6/Factory | Fabricated Exp. Utility Shielding? 15573 | -6/Factory | Repaired Lgt. Fission Core? 15585 | -6/Factory | Fabricated Mni. Smartbomb Launcher? 15741 | -6/Factory | Repaired Cld. VTOL Module 15755 | -6/Factory | Fabricated Mni. Smartbomb Launcher (x1) 15764 | -6/Factory | Repaired Greatsword 15820 | -6/Factory | Fabricated Cld. Nuclear Pulse Thruster (x1) 15829 | -6/Factory | Spotted B-75 Beast 15885 | -6/Factory | Repaired Lgt. Fission Core 16050 | -6/Factory | Entered Extension 16066 | -6/Extension | Rescued a captive Derelict 16205 | -6/Extension | Rescued A7 16229 | -6/Extension | Rescued a captive Derelict 16233 | -6/Extension | Rescued a captive Derelict 16235 | -6/Extension | Rescued a captive Derelict 16400 | -6/Extension | Disrupted transfer network 16481 | -6/Extension | Spotted B-75 Beast 16483 | -6/Extension | Allies destroyed B-75 Beast 16538 | -6/Extension | Rescued a captive Derelict 16539 | -6/Extension | Rescued a captive Derelict 16586 | -6/Extension | Discovered new exit (range 15) 16586 | -6/Extension | Discovered exit to Factory (range 15) 16727 | -6/Extension | Identified exit to Cetus 16729 | -6/Extension | Entered Cetus 16729 | -6/Cetus | Accompanied by 12 allies (A7) 16734 | -6/Cetus | Acquired a Cetus Manufacturing Module code from A7 16734 | -6/Cetus | Spotted Cetus Guard 16734 | -6/Cetus | Spotted Cetus Guard 16743 | -6/Cetus | Spotted Cetus Guard 16744 | -6/Cetus | Spotted Cetus Guard 16750 | -6/Cetus | Core integrity fell below 50% 16750 | -6/Cetus | Allies destroyed Cetus Guard 16752 | -6/Cetus | Allies destroyed Cetus Guard 16754 | -6/Cetus | Allies destroyed Cetus Guard 16780 | -6/Cetus | Started Cetus Manufacturing Module 16805 | -6/Cetus | Manufactured an Enhanced Grunt 16809 | -6/Cetus | Cetus Manufacturing Module disabled 16816 | -6/Cetus | Escorted A7 to Cetus Mainframe 16825 | -6/Cetus | Discovered new exit (range 15) 16847 | -6/Cetus | Spotted Cetus Guard 16847 | -6/Cetus | Spotted Cetus Guard 16847 | -6/Cetus | Spotted Cetus Guard 16847 | -6/Cetus | Spotted Cetus Guard 16851 | -6/Cetus | Allies destroyed Cetus Guard 16872 | -6/Cetus | Discovered exit to Factory (range 15) 16874 | -6/Cetus | Met Revision 17 16901 | -6/Cetus | Identified exit to Archives 16918 | -6/Cetus | Entered Archives 16918 | -6/Archives | Accompanied by 7 allies (A7) 16923 | -6/Archives | Received a hacking code to weaken MAIN.C 16954 | -6/Archives | Unable to access archive contents 16972 | -6/Archives | Discovered new exit (range 16) 16976 | -6/Archives | Identified exit to Hub_04(d) 16981 | -6/Archives | Unable to access archive contents 16985 | -6/Archives | Discovered exit to Factory (range 14) 16992 | -6/Archives | Discovered exit to Hub_04(d) (range 16) 16998 | -6/Archives | Entered Hub_04(d) 17031 | -6/Hub_04(d) | Discovered exit to Factory (range 13) 17092 | -6/Hub_04(d) | Network Hub disabled 17105 | -6/Hub_04(d) | Network Hub disabled 17117 | -6/Hub_04(d) | Entered Factory 17117 | -5/Factory | Evolved 2 slots: Utility x2 17144 | -5/Factory | Repaired Lgt. Fission Core 17200 | -5/Factory | Central database locked down 17241 | -5/Factory | Fabricated Adv. Hacking Suite? 17287 | -5/Factory | Discovered new exit (range 5) 17288 | -5/Factory | Identified exit to Upper Caves 17323 | -5/Factory | Discovered exit to Upper Caves (range 16) 17510 | -5/Factory | Spotted B-75 Beast 17696 | -5/Factory | Sucked down chute 17696 | -5/Factory | Entered Waste 17696 | -5/Waste | The area was eerily silent 17745 | -5/Waste | Discovered new exit (range 11) 17750 | -5/Waste | Identified exit to Factory 17750 | -5/Waste | Entered Factory 17757 | -5/Factory | Identified exit to Factory 17876 | -5/Factory | Repaired Exp. Utility Shielding? 17940 | -5/Factory | Repaired Cld. VTOL Module 18012 | -5/Factory | Repaired Cld. VTOL Module? 18156 | -5/Factory | Fabricated Exp. Hacking Suite? 18263 | -5/Factory | Fabricated Exp. Hacking Suite? 18416 | -5/Factory | Spotted B-75 Beast 18446 | -5/Factory | Fabricated Exp. Hacking Suite? 18730 | -5/Factory | Repaired Cld. VTOL Module? 18800 | -5/Factory | Fabricated Cld. Field Propulsion Drive? 18934 | -5/Factory | Found Unknown Device 18934 | -5/Factory | Identified Launcher Loader 18953 | -5/Factory | Fabricated Cld. Field Propulsion Drive? 18998 | -5/Factory | Build established: Wizard-Sprinter 19006 | -5/Factory | Fabricated Cld. Field Propulsion Drive (x1) 19055 | -5/Factory | Fabricated Cld. Field Propulsion Drive (x1) 19244 | -5/Factory | Entered Upper Caves 19261 | -5/Upper Caves | Identified exit to Upper Caves 19284 | -5/Upper Caves | Encountered a Warlord checkpoint 19294 | -5/Upper Caves | Entered another Upper Caves area 19308 | -5/Upper Caves | Encountered a Warlord checkpoint 19366 | -5/Upper Caves | Discovered new exit (range 14) 19384 | -5/Upper Caves | Identified exit to Warlord 19450 | -5/Upper Caves | Entered Warlord 19775 | -5/Warlord | Warlord's base attacked by MAIN.C 19814 | -5/Warlord | Found Prototype Energy Cannon 19854 | -5/Warlord | Met Warlord 19870 | -5/Warlord | Found Prototype Hackware 19870 | -5/Warlord | Identified Ghost Barrier 19875 | -5/Warlord | Found Prototype Device 19875 | -5/Warlord | Identified Exp. Focal Shield 19881 | -5/Warlord | Found Prototype Device 19881 | -5/Warlord | Identified Exp. Phase Shifter 19995 | -5/Warlord | Warlord forces counterattacked 20041 | -5/Warlord | Destroyed 19 combat bots 20078 | -5/Warlord | Spotted Striker 20090 | -5/Warlord | Spotted Executioner 20109 | -5/Warlord | Discovered new exit (range 15) 20177 | -5/Warlord | Spotted Striker 20274 | -5/Warlord | Opened side exit 20278 | -5/Warlord | Spotted B-86 Titan 20278 | -5/Warlord | Spotted B-75 Beast 20295 | -5/Warlord | Identified exit to Proximity Caves 20383 | -5/Warlord | Destroyed Striker 20404 | -5/Warlord | Destroyed 9 combat bots 20450 | -5/Warlord | Warlord base infiltrated, sounded retreat 20526 | -5/Warlord | Spotted Striker 20539 | -5/Warlord | Spotted Executioner 20590 | -5/Warlord | Spotted Striker 20653 | -5/Warlord | Entered Proximity Caves 20653 | -4/Proximity Caves | Accompanied by 5 allies 20682 | -4/Proximity Caves | Attracted the attention of an 0b10 checkpoint 20715 | -4/Proximity Caves | Spotted B-86 Titan 20726 | -4/Proximity Caves | Learned Research terminal intel 20751 | -4/Proximity Caves | Discovered exit to Factory (range 15) 20755 | -4/Proximity Caves | Entered Factory 20755 | -4/Factory | Evolved 2 slots: Power x1, Utility x1 20756 | -4/Factory | Identified exit to Armory 20785 | -4/Factory | Garrison activated, responded to threat 20803 | -4/Factory | Identified exit to Upper Caves 20892 | -4/Factory | Fabricated Exp. Hacking Suite? 20903 | -4/Factory | Identified exit to Research 21337 | -4/Factory | Fabricated Quantum Shading Machine? 21471 | -4/Factory | Fabricated Centrium Medium Armor Plating (x1) 22309 | -4/Factory | Fabricated Exp. Signal Interpreter? 22362 | -4/Factory | Sucked down chute 22362 | -4/Factory | Entered Waste 22372 | -4/Waste | Spotted C-40 Crusher 22373 | -4/Waste | Spotted C-40 Crusher 22375 | -4/Waste | Spotted C-40 Crusher 22377 | -4/Waste | EMP discharged 22397 | -4/Waste | Spotted C-40 Crusher 22403 | -4/Waste | Spotted C-40 Crusher 22411 | -4/Waste | Discovered new exit (range 16) 22411 | -4/Waste | Spotted C-40 Crusher 22415 | -4/Waste | Identified exit to Factory 22415 | -4/Waste | Entered Factory 22435 | -4/Factory | Discovered exit to Upper Caves (range 8) 22435 | -4/Factory | Central database locked down 22571 | -4/Factory | Fabricated Exp. Melee Analysis Suite? 22767 | -4/Factory | Found Prototype Device 22767 | -4/Factory | Identified Exp. Thermal Shield 22795 | -4/Factory | Fabricated Exp. Melee Analysis Suite? 23035 | -4/Factory | Found Prototype Device 23035 | -4/Factory | Identified Exp. ECM Suite 23488 | -4/Factory | Fabricated Exp. Melee Analysis Suite? 23531 | -4/Factory | System corruption reached 10% 23718 | -4/Factory | Repaired Centrium Medium Armor Plating 23776 | -4/Factory | Repaired Imp. Diametric Drive 23820 | -4/Factory | Repaired Exp. Utility Shielding 24221 | -4/Factory | Fabricated Exp. Sensor Array (x1) 24261 | -4/Factory | Entered Upper Caves 24266 | -4/Upper Caves | Identified exit to Upper Caves 24283 | -4/Upper Caves | Encountered a Warlord checkpoint 24318 | -4/Upper Caves | Learned 8 Research zone layouts 24348 | -4/Upper Caves | Entered another Upper Caves area 24348 | -4/Upper Caves | Discovered exit to Research (range 9) 24353 | -4/Upper Caves | Learned 4 Research zone layouts 24361 | -4/Upper Caves | Attacked by a delusional Derelict stockpiling Unaware 24396 | -4/Upper Caves | Learned Research interactive machine intel 24416 | -4/Upper Caves | Spotted B-86 Titan 24604 | -4/Upper Caves | Discovered new exit (range 14) 24606 | -4/Upper Caves | Learned Research terminal intel 24607 | -4/Upper Caves | Identified exit to Zhirov 24607 | -4/Upper Caves | Entered Zhirov 24607 | -4/Zhirov | Discovered new exit (range 3) 24612 | -4/Zhirov | Met Zhirov 24620 | -4/Zhirov | Learned location of Quarantine (-3) 24620 | -4/Zhirov | Learned location of Testing (-2) 24620 | -4/Zhirov | Learned location of Command (-1) 24623 | -4/Zhirov | Zhirov requested help retrieving the SGEMP Prototype 24629 | -4/Zhirov | Found Alien Artifact 24629 | -4/Zhirov | Identified Integrated Reactor 24629 | -4/Zhirov | Installed Integrated Reactor, increased core energy generation (+10) 24655 | -4/Zhirov | Found Alien Artifact 24673 | -4/Zhirov | Identified exit to Proximity Caves 24674 | -4/Zhirov | Entered Proximity Caves 24758 | -3/Proximity Caves | Spotted B-86 Titan 24885 | -3/Proximity Caves | Discovered exit to Research (range 14) 24891 | -3/Proximity Caves | Attracted the attention of an 0b10 checkpoint 24892 | -3/Proximity Caves | Entered Research 24892 | -3/Research | Evolved 2 slots: Propulsion x1, Utility x1 24893 | -3/Research | Identified exit to Research 24894 | -3/Research | Loaded intel: 46 interactive machine locations 24895 | -3/Research | Loaded intel: 24 terminal locations 24930 | -3/Research | Repaired Cld. Field Propulsion Drive? 24959 | -3/Research | Repaired Lgt. Antimatter Reactor? 25002 | -3/Research | Repaired Cld. Field Propulsion Drive 25063 | -3/Research | Identified exit to Quarantine 25242 | -3/Research | Repaired Lgt. Antimatter Reactor 25298 | -3/Research | Repaired Imp. Diametric Drive 25338 | -3/Research | Spotted B-86 Titan 25599 | -3/Research | Identified Transdimensional Reconstructor 25761 | -3/Research | Fabricated Femtoactuators? 25763 | -3/Research | Spotted B-86 Titan 25835 | -3/Research | Repaired Com. Particle Reactor 25975 | -3/Research | Entered Quarantine 25976 | -3/Quarantine | Spotted Alpha 7 26025 | -3/Quarantine | Found Alien Artifact 26035 | -3/Quarantine | Identified Terrabomb 26131 | -3/Quarantine | Found Alien Artifact 26147 | -3/Quarantine | Identified Subatomic Replicator 26169 | -3/Quarantine | Found Alien Artifact 26175 | -3/Quarantine | Identified Phase Redirector 26291 | -3/Quarantine | Repaired Cld. VTOL Module? 26306 | -3/Quarantine | Found Alien Impact Weapon 26306 | -3/Quarantine | Identified Core Stripper 26360 | -3/Quarantine | Scanned by Researcher 26395 | -3/Quarantine | Warped through subspace 26475 | -3/Quarantine | Search patrols dispatched 26522 | -3/Quarantine | Found Transdimensional Reconstructor 26535 | -3/Quarantine | Found Transdimensional Reconstructor 26536 | -3/Quarantine | Warped through subspace 26667 | -3/Quarantine | Found Alien Artifact 26667 | -3/Quarantine | Identified Phase Armor 26714 | -3/Quarantine | Found Alien Slashing Weapon 26714 | -3/Quarantine | Identified Sigix Broadsword 26719 | -3/Quarantine | Spotted Fortress 26725 | -3/Quarantine | Search patrols dispatched 26755 | -3/Quarantine | Discovered new exit (range 6) 26756 | -3/Quarantine | Identified exit to Section 7 26756 | -3/Quarantine | Entered Section 7 26761 | -3/Section 7 | Found Alien Artifact 26811 | -3/Section 7 | Identified Integrated Mediator 26811 | -3/Section 7 | Installed Integrated Mediator, increased core attachment efficiency. 26870 | -3/Section 7 | Repaired Centrium Medium Armor Plating 26898 | -3/Section 7 | Repaired Exp. Utility Shielding? 26911 | -3/Section 7 | Spotted S7 Guard 26942 | -3/Section 7 | Warped through subspace 26948 | -3/Section 7 | Found Integrated Reactor 26948 | -3/Section 7 | Installed Integrated Reactor, increased core energy generation (+10) 27006 | -3/Section 7 | Search patrols dispatched 27015 | -3/Section 7 | Spotted B-99 Colossus 27033 | -3/Section 7 | Found Alien Artifact 27045 | -3/Section 7 | Found Alien Artifact 27046 | -3/Section 7 | Identified LRC Matter Compressor 27046 | -3/Section 7 | Installed LRC Matter Compressor, increased matter storage capacity (+125) 27047 | -3/Section 7 | Identified Core Reset Matrix 27047 | -3/Section 7 | Used Core Reset Matrix 27049 | -3/Section 7 | Found Core Reset Matrix 27050 | -3/Section 7 | Found Core Reset Matrix 27051 | -3/Section 7 | Sensed 16 artifacts in vicinity 27053 | -3/Section 7 | Sensed 16 artifacts in vicinity 27134 | -3/Section 7 | Found Transdimensional Reconstructor 27135 | -3/Section 7 | Found Transdimensional Reconstructor 27145 | -3/Section 7 | Spotted Executioner 27145 | -3/Section 7 | Spotted Executioner 27203 | -3/Section 7 | Found Core Membrane 27203 | -3/Section 7 | Installed Core Membrane, gained immunity to corruption 27207 | -3/Section 7 | Warped through subspace 27243 | -3/Section 7 | Crushed by falling debris 27275 | -3/Section 7 | Found Spacefold Activator 27307 | -3/Section 7 | Crushed by falling debris 27308 | -3/Section 7 | Core integrity fell below 50% 27349 | -3/Section 7 | Core integrity fell below 20% 27353 | -3/Section 7 | Entered Research 27353 | -2/Research | Warlord forces began assault on 0b10 27353 | -2/Research | Evolved 2 slots: Propulsion x1, Utility x1 27433 | -2/Research | Discovered new exit (range 8) 27463 | -2/Research | Research machine network offline 27562 | -2/Research | Discovered new exit (range 9) 27594 | -2/Research | Identified exit to Access 27604 | -2/Research | Build established: Hacker-Sprinter 27649 | -2/Research | Borebot progress halted 27753 | -2/Research | Borebot progress halted 27759 | -2/Research | Met up with Warlord 27865 | -2/Research | Spotted Executioner 27879 | -2/Research | Borebot progress halted 27941 | -2/Research | Spotted Striker 27941 | -2/Research | Spotted Striker 28004 | -2/Research | Spotted B-90 Cyclops 28033 | -2/Research | Entered Access 28033 | -1/Access | Evolved 2 slots: Power x1, Utility x1 28054 | -1/Access | Found Prototype Launcher 28054 | -1/Access | Identified Tactical Quantum Warhead 28101 | -1/Access | Used Subatomic Replicator to replicate Centrium Medium Armor Plating 28125 | -1/Access | Repaired Cld. Field Propulsion Drive 28149 | -1/Access | Identified exit to Command 28261 | -1/Access | Build established: Wizard-Scout 28332 | -1/Access | Search patrols dispatched 28343 | -1/Access | Spotted B-99 Colossus 28419 | -1/Access | Spotted B-99 Colossus 28425 | -1/Access | Crushed by falling debris 28455 | -1/Access | Fabricated Exp. Armor Integrity Analyzer? 28538 | -1/Access | Crushed by falling debris 28554 | -1/Access | Spotted B-99 Colossus 28554 | -1/Access | Spotted B-99 Colossus 28586 | -1/Access | Lost 5 parts (1p2n1u1w) 28614 | -1/Access | Entered Command 28638 | -1/Command | Lost 3 parts (1p2n) 28643 | -1/Command | Spotted B-99 Colossus 28735 | -1/Command | Repaired Centrium Medium Armor Plating 28935 | -1/Command | Core integrity fell below 50% 28998 | -1/Command | Disengaged cave seal 28998 | -1/Command | Derelicts emerged from the dark tunnel 28998 | -1/Command | Welcomed Warlord to Command 29114 | -1/Command | Search patrols dispatched 29123 | -1/Command | Spotted B-99 Colossus 29154 | -1/Command | Build established: Hacker-Sprinter 29166 | -1/Command | Lost 4 parts (1p1n2u) 29246 | -1/Command | Disengaged cave seal 29246 | -1/Command | Derelicts emerged from the dark tunnel 29276 | -1/Command | Spotted Alpha 7 29276 | -1/Command | Spotted Alpha 7 29276 | -1/Command | Spotted Striker 29276 | -1/Command | Spotted Striker 29276 | -1/Command | Spotted Executioner 29276 | -1/Command | Spotted Executioner 29276 | -1/Command | Spotted Executioner 29276 | -1/Command | Spotted Executioner 29287 | -1/Command | Spotted B-99 Colossus 29288 | -1/Command | Emitted hypermatrix ping 29288 | -1/Command | Spotted B-99 Colossus 29293 | -1/Command | Assembled emerged from beneath the floor 29296 | -1/Command | Discovered new exit (range 3) 29296 | *** | Heading to fleet! Last Messages --------------- 29291_ Access Shell breached. 29291_ Slug penetrates Access Shell. 29291_ Penetrated by Slug. 29291_ Slug penetrates Wall. 29291_ Penetrated by Slug. 29291_ Slug penetrates Wall. 29291_ Triggered Stasis Trap. 29291_ A bubble of rippling energy engulfs the area. 29291_ Field strength at 65. 29293_ Assembled emerge from beneath the floor. 29293_ B-99 Colossus suffers critical hit (Destroy). 29294_ Slug penetrates as-97011. 29294_ Slug penetrates Wall. 29295_ Field strength at 30. 29296_ Stasis field depleted. 29296_ EXIT=FOUND 29296_ Slug penetrates B-99 Colossus. [Achievement: Back For More] [Achievement: Home At Last?] [Achievement: Overachiever] Map ----- +----------------------------------------------------+ | | | | | ###??????????????????????????????????????????????? | | #??????????????????????????????????????????????? | | #??????????????????????????????????????????????? | | #??????????????????????????????????????????????? | | #?????????????????????????????????????????????## | | #?????????????????????????????????????????????# | | #?????????????????????????????????????????????# | | ###?????????????????????????????????????????????# | | +?????????????????????????????????????????????## | | ##???#???????????????????????????????????????????? | | ????? ???????????????????????????????????????????? | | ????? #??????????????????????????????????????????# | | ##### #??????????????????????????????????????????# | | """ #??????????????????????????????????????????# | | "R" #??????????????????????????????????????????# | | " " #??????????????????????????????????????????# | | #??????????????????????????????????????????# | | #????????????????????#####?????????????????# | | #???????????????????? #?????????????????# | | #???###?#?#???? ?? #?????????????????# | | #??#" # # # # ?? #?????????????????# | | ### ^ """""" #?????????????????# | | %+= " " #?????????????????? | | "! ^ " "@ " #?????????????????? | | /* ^ " "" " #?????????????????? | | / " #?????????????????? | | ## #"# ^ B a""""! #?????????????????? | | ?# ##### " # # # Eaa ! ! #?????????????????? | | ?# #?????#?????#BB ] % ;#????????????????? | | ?# #???????????#BB % ##????????????????? | | ?# #???????????###;"######"##?????????????????? | | ## #?????????????##??#????##??????????????????? | | #??????###########?????????????????????????? | | #??????# """"" #??##?????????????????????? | | ######## ""T"" # #?????????????????????? | | ## + #?????????????????????? | | ###########+## # #?????????????????????? | | ## # #?? #?????????????????????? | | ## " #?????????????????????????# | | ## # #?????????????????????????# | | ## # #?????????????????????????# | | ## ###+####"###+???????????????????????# | | ## + H ??????????????# | | ## # #########???????????????????????# | | #######+###### #???????????????????????????????# | | #??????????????????############## | | ########+#??????????????????# | | ###+##???????????????????????????# | +----------------------------------------------------+ Best States ------------- Heat Dissipation 53 Coolant Potential 80 Energy Generation 69 Energy Capacity 295 Matter Stores 425 Matter Capacity 425 Sight Range 20 Robot Scan Range 20 Terrain Scan Range 20 Terrain Scan Density 10 Jamming Range 16 Additional Mass Support 25 EM Shielding 3 Armor Coverage 450 Resistance: TH 20 Core Shielding 30 Power Shielding 66 Propulsion Shielding 66 Utility Shielding 90 Point Defense Rating 80 Melee Speed Boost 50 Phase Shifting 20 Evasion (%) 96 Targeting Accuracy 16 Melee Accuracy 24 Armor Integrity Analysis 40 Recoil Reduction 4 Offensive Hacking 90 Defensive Hacking 10 Authchip Count 3 Trap Extractor Capacity 6 Item Schematics ----------------- Exp. Armor Integrity Analyzer | -1/Access | Hacked Robot Schematics ------------------ None Fabricated ------------ Imp. Trap Extractor | x2 | -7/Factory | Authchip Adv. Hacking Suite | x1 | -7/Factory | Authchip Adv. Hacking Suite | x1 | -7/Factory | Authchip Exp. Sensor Array | x1 | -7/Factory | Authchip Adv. Hacking Suite | x1 | -7/Factory | Authchip Adv. Signal Interpreter | x2 | -7/Factory | Authchip Greatsword | x2 | -7/Factory | Authchip Cld. VTOL Module | x1 | -6/Factory | Authchip Cld. VTOL Module | x1 | -6/Factory | Authchip Exp. Utility Shielding | x1 | -6/Factory | Authchip Adv. Hacking Suite | x1 | -6/Factory | Authchip Adv. Hacking Suite | x1 | -6/Factory | Authchip Adv. Hacking Suite | x1 | -6/Factory | Authchip Greatsword | x2 | -6/Factory | Authchip Exp. Utility Shielding | x1 | -6/Factory | Authchip Mni. Smartbomb Launcher | x1 | -6/Factory | Authchip Mni. Smartbomb Launcher | x1 | -6/Factory | Authchip Cld. Nuclear Pulse Thruster | x1 | -6/Factory | Authchip Adv. Hacking Suite | x1 | -5/Factory | Authchip Exp. Hacking Suite | x1 | -5/Factory | Authchip Exp. Hacking Suite | x1 | -5/Factory | Authchip Exp. Hacking Suite | x1 | -5/Factory | Authchip Cld. Field Propulsion Drive | x1 | -5/Factory | Authchip Cld. Field Propulsion Drive | x1 | -5/Factory | Authchip Cld. Field Propulsion Drive | x1 | -5/Factory | Authchip Cld. Field Propulsion Drive | x1 | -5/Factory | Authchip Exp. Hacking Suite | x1 | -4/Factory | Authchip Quantum Shading Machine | x1 | -4/Factory | Authchip Centrium Medium Armor Plating | x1 | -4/Factory | Authchip Exp. Signal Interpreter | x1 | -4/Factory | Authchip Exp. Melee Analysis Suite | x1 | -4/Factory | Authchip Exp. Melee Analysis Suite | x1 | -4/Factory Exp. Melee Analysis Suite | x1 | -4/Factory | Authchip Exp. Sensor Array | x1 | -4/Factory | Authchip Femtoactuators | x1 | -3/Research | Authchip Exp. Armor Integrity Analyzer | x1 | -1/Access | Authchip Alien Tech Used ----------------- Integrated Reactor Core Stripper Transdimensional Reconstructor Phase Armor Sigix Broadsword Integrated Mediator LRC Matter Compressor Core Reset Matrix Core Membrane Spacefold Activator Subatomic Replicator Achievements -------------- Back For More Home At Last? Main Advantage Overachiever Project G-00 Revising The Future Ultimate Loadout Challenges ------------ None Game ------ Seed ForceThunderRigger Manual? 0 Play Time 09:42:11 Cumulative 90.6 hours Start 2024.02.24 @ 16:39:48 End 2024.02.27 @ 16:31:18 Sessions 22 Manual Loads 0 Difficulty Rogue Special Mode None Game No. 50 Rogue 50 Adventurer 0 Explorer 0 Win Type 2 Total 4 Types 2/0/1/1/0/0/0/0/0 Lore% 65 Gallery% 61 Achievement% 52 Wizard Run 0 Options --------- ASCII 0 Keyboard 1 Movement Numpad Keybinds 0 Fullscreen 1 Font 18/SmallcapsGlow Map View 76x50 Tactical HUD 1 Map Filters NONE Filters NONE Steam 1 RUN: 9c4a8739-ed1d-4ebc-a246-2e018db9a47d